Workbook

Sheet results
A1: The US PGA 2014
A4: Day | B4: 0
B6: Pick | C6: Total | D6: Hole | E6: T off time | H6: Pick | I6: Total | J6: Hole | K6: T off time | N6: Pick | O6: Total | P6: Hole | Q6: T off time
A7: ='random picks'!B2 -> DEANO | B7: =SUM(B8:B12)/5 -> 4.4 | G7: ='random picks'!F2 -> JOHN C | H7: =SUM(H8:H12)/5 -> 3 | M7: ='random picks'!J2 -> 0 | N7: =SUM(N8:N12)/5 -> 0
A8: =BLANKS!A8 -> Rickie Fowler | B8: =BLANKS!B8 -> 3 | C8: =IF($A8="","",VLOOKUP($A8,webquery!S:V,2,FALSE)) -> -11 | D8: =IF(E8<1,"",VLOOKUP($A8,webquery!$S:V,4,FALSE)) -> F | E8: 1.5 | G8: =BLANKS!D8 -> Sergio Garcia | H8: =BLANKS!E8 -> 5 | I8: =IF($G8="","",VLOOKUP($G8,webquery!S:V,2,FALSE)) -> -5 | J8: =IF(K8<1,"",VLOOKUP($G8,webquery!$S:$V,4,FALSE)) -> F | K8: 1.5 | M8: =BLANKS!G8 -> 0 | N8: =BLANKS!H8 -> 0 | O8: =IF($M8="","",VLOOKUP($M8,webquery!S:V,2,FALSE)) ->  | P8: =IF(Q8<1,"",VLOOKUP($M8,webquery!$S:$V,4,FALSE)) ->  | Q8: 1.5
A9: =BLANKS!A9 -> Graeme McDowell | B9: =BLANKS!B9 -> 4 | C9: =IF($A9="","",VLOOKUP($A9,webquery!S:V,2,FALSE)) -> 1 | D9: =IF(E9<1,"",VLOOKUP($A9,webquery!$S:V,4,FALSE)) -> F | E9: 1.5 | G9: Tiger Woods | H9: =BLANKS!E9 -> 3 | I9: =IF($G9="","",VLOOKUP($G9,webquery!S:V,2,FALSE)) -> - | J9: =IF(K9<1,"",VLOOKUP($G9,webquery!$S:$V,4,FALSE)) -> - | K9: 1.5 | M9: =BLANKS!G9 -> 0 | N9: =BLANKS!H9 -> 0 | O9: =IF($M9="","",VLOOKUP($M9,webquery!S:V,2,FALSE)) ->  | P9: =IF(Q9<1,"",VLOOKUP($M9,webquery!$S:$V,4,FALSE)) ->  | Q9: 1.5
A10: =BLANKS!A10 -> Marc Leishman | B10: =BLANKS!B10 -> 5 | C10: =IF($A10="","",VLOOKUP($A10,webquery!S:V,2,FALSE)) -> 1 | D10: =IF(E10<1,"",VLOOKUP($A10,webquery!$S:V,4,FALSE)) -> F | E10: 1.5 | G10: =BLANKS!D10 -> Martin Kaymer | H10: =BLANKS!E10 -> 2 | I10: =IF($G10="","",VLOOKUP($G10,webquery!S:V,2,FALSE)) -> - | J10: =IF(K10<1,"",VLOOKUP($G10,webquery!$S:$V,4,FALSE)) -> - | K10: 1.5 | M10: =BLANKS!G10 -> 0 | N10: =BLANKS!H10 -> 0 | O10: =IF($M10="","",VLOOKUP($M10,webquery!S:V,2,FALSE)) ->  | P10: =IF(Q10<1,"",VLOOKUP($M10,webquery!$S:$V,4,FALSE)) ->  | Q10: 1.5
A11: =BLANKS!A11 -> Harris English | B11: =BLANKS!B11 -> 5 | C11: =IF($A11="","",VLOOKUP($A11,webquery!S:V,2,FALSE)) -> - | D11: =IF(E11<1,"",VLOOKUP($A11,webquery!$S:V,4,FALSE)) -> - | E11: 1.5 | G11: =BLANKS!D11 -> Jason Day | H11: =BLANKS!E11 -> 1 | I11: =IF($G11="","",VLOOKUP($G11,webquery!S:V,2,FALSE)) -> -10 | J11: =IF(K11<1,"",VLOOKUP($G11,webquery!$S:$V,4,FALSE)) -> F | K11: 1.5 | M11: =BLANKS!G11 -> 0 | N11: =BLANKS!H11 -> 0 | O11: =IF($M11="","",VLOOKUP($M11,webquery!S:V,2,FALSE)) ->  | P11: =IF(Q11<1,"",VLOOKUP($M11,webquery!$S:$V,4,FALSE)) ->  | Q11: 1.5
A12: =BLANKS!A12 -> Geoff Ogilvy | B12: =BLANKS!B12 -> 5 | C12: =IF($A12="","",VLOOKUP($A12,webquery!S:V,2,FALSE)) -> -2 | D12: =IF(E12<1,"",VLOOKUP($A12,webquery!$S:V,4,FALSE)) -> F | E12: 1.5 | G12: =BLANKS!D12 -> Steve Stricker | H12: =BLANKS!E12 -> 4 | I12: =IF($G12="","",VLOOKUP($G12,webquery!S:V,2,FALSE)) -> -8 | J12: =IF(K12<1,"",VLOOKUP($G12,webquery!$S:$V,4,FALSE)) -> F | K12: 1.5 | M12: =BLANKS!G12 -> 0 | N12: =BLANKS!H12 -> 0 | O12: =IF($M12="","",VLOOKUP($M12,webquery!S:V,2,FALSE)) ->  | P12: =IF(Q12<1,"",VLOOKUP($M12,webquery!$S:$V,4,FALSE)) ->  | Q12: 1.5
A13: Best 3 | C13: =IF(ISERROR(SMALL(C8:C12,1)+SMALL(C8:C12,2)+SMALL(C8:C12,3)),"",SMALL(C8:C12,1)+SMALL(C8:C12,2)+SMALL(C8:C12,3)) -> -12 | D13: =IF(ISERROR(C13-B7/100),"",C13-B7/100) -> -12.044 | G13: Best 3 | I13: =IF(ISERROR(SMALL(I8:I12,1)+SMALL(I8:I12,2)+SMALL(I8:I12,3)),"",SMALL(I8:I12,1)+SMALL(I8:I12,2)+SMALL(I8:I12,3)) -> -23 | J13: =IF(ISERROR(I13-H7/100),"",I13-H7/100) -> -23.03 | M13: Best 3 | O13: =IF(ISERROR(SMALL(O8:O12,1)+SMALL(O8:O12,2)+SMALL(O8:O12,3)),"",SMALL(O8:O12,1)+SMALL(O8:O12,2)+SMALL(O8:O12,3)) ->  | P13: =IF(ISERROR(O13-N7/100),"",O13-N7/100) -> 
A14: Running position | C14: =VLOOKUP(A7,ranks!$C$4:$G$14,4,FALSE) -> 6 | D14: =VLOOKUP(A7,ranks!$C$4:$G$14,5,FALSE) -> 6 | E14: adj for pick | G14: Running position | I14: =VLOOKUP(G7,ranks!$C$4:$G$14,4,FALSE) -> 1 | J14: =VLOOKUP(G7,ranks!$C$4:$G$14,5,FALSE) -> 1 | K14: adj for pick | M14: Running position | O14: =VLOOKUP(M7,ranks!$C$4:$G$14,4,FALSE) ->  | P14: =VLOOKUP(M7,ranks!$C$4:$G$14,5,FALSE) ->  | Q14: adj for pick
A16: ='random picks'!C2 -> TEZ | B16: =SUM(B17:B21)/5 -> 3.4 | G16: ='random picks'!G2 -> CRAIG T | H16: =SUM(H17:H21)/5 -> 3.8 | M16: ='random picks'!K2 -> 0 | N16: =SUM(N17:N21)/5 -> 0
A17: =BLANKS!A17 -> Phil Mickelson | B17: =BLANKS!B17 -> 4 | C17: =IF($A17="","",VLOOKUP($A17,webquery!S:V,2,FALSE)) -> -10 | D17: =IF(E17<1,"",VLOOKUP($A17,webquery!$S:V,4,FALSE)) -> F | E17: 1.5 | G17: =BLANKS!D17 -> Justin Rose | H17: =BLANKS!E17 -> 6 | I17: =IF($G17="","",VLOOKUP($G17,webquery!S:V,2,FALSE)) -> -4 | J17: =IF(K17<1,"",VLOOKUP($G17,webquery!$S:$V,4,FALSE)) -> F | K17: 1.5 | M17: =BLANKS!G17 -> 0 | N17: =BLANKS!H17 -> 0 | O17: =IF($M17="","",VLOOKUP($M17,webquery!S:V,2,FALSE)) ->  | P17: =IF(Q17<1,"",VLOOKUP($M17,webquery!$S:$V,4,FALSE)) ->  | Q17: 1.5
A18: =BLANKS!A18 -> Jordan Spieth | B18: =BLANKS!B18 -> 1 | C18: =IF($A18="","",VLOOKUP($A18,webquery!S:V,2,FALSE)) -> - | D18: =IF(E18<1,"",VLOOKUP($A18,webquery!$S:V,4,FALSE)) -> - | E18: 1.5 | G18: =BLANKS!D18 -> Charl Schwartzel | H18: =BLANKS!E18 -> 7 | I18: =IF($G18="","",VLOOKUP($G18,webquery!S:V,2,FALSE)) -> -4 | J18: =IF(K18<1,"",VLOOKUP($G18,webquery!$S:$V,4,FALSE)) -> F | K18: 1.5 | M18: =BLANKS!G18 -> 0 | N18: =BLANKS!H18 -> 0 | O18: =IF($M18="","",VLOOKUP($M18,webquery!S:V,2,FALSE)) ->  | P18: =IF(Q18<1,"",VLOOKUP($M18,webquery!$S:$V,4,FALSE)) ->  | Q18: 1.5
A19: =BLANKS!A19 -> Jimmy Walker | B19: =BLANKS!B19 -> 4 | C19: =IF($A19="","",VLOOKUP($A19,webquery!S:V,2,FALSE)) -> -5 | D19: =IF(E19<1,"",VLOOKUP($A19,webquery!$S:V,4,FALSE)) -> F | E19: 1.5 | G19: =BLANKS!D19 -> Jim Furyk | H19: =BLANKS!E19 -> 1 | I19: =IF($G19="","",VLOOKUP($G19,webquery!S:V,2,FALSE)) -> -7 | J19: =IF(K19<1,"",VLOOKUP($G19,webquery!$S:$V,4,FALSE)) -> F | K19: 1.5 | M19: =BLANKS!G19 -> 0 | N19: =BLANKS!H19 -> 0 | O19: =IF($M19="","",VLOOKUP($M19,webquery!S:V,2,FALSE)) ->  | P19: =IF(Q19<1,"",VLOOKUP($M19,webquery!$S:$V,4,FALSE)) ->  | Q19: 1.5
A20: =BLANKS!A20 -> J.B. Holmes | B20: =BLANKS!B20 -> 7 | C20: =IF($A20="","",VLOOKUP($A20,webquery!S:V,2,FALSE)) -> -4 | D20: =IF(E20<1,"",VLOOKUP($A20,webquery!$S:V,4,FALSE)) -> F | E20: 1.5 | G20: =BLANKS!D20 -> Brandt Snedeker | H20: =BLANKS!E20 -> 2 | I20: =IF($G20="","",VLOOKUP($G20,webquery!S:V,2,FALSE)) -> -6 | J20: =IF(K20<1,"",VLOOKUP($G20,webquery!$S:$V,4,FALSE)) -> F | K20: 1.5 | M20: =BLANKS!G20 -> 0 | N20: =BLANKS!H20 -> 0 | O20: =IF($M20="","",VLOOKUP($M20,webquery!S:V,2,FALSE)) ->  | P20: =IF(Q20<1,"",VLOOKUP($M20,webquery!$S:$V,4,FALSE)) ->  | Q20: 1.5
A21: =BLANKS!A21 -> Luke Donald | B21: =BLANKS!B21 -> 1 | C21: =IF($A21="","",VLOOKUP($A21,webquery!S:V,2,FALSE)) -> -3 | D21: =IF(E21<1,"",VLOOKUP($A21,webquery!$S:V,4,FALSE)) -> F | E21: 1.5 | G21: =BLANKS!D21 -> Hunter Mahan | H21: =BLANKS!E21 -> 3 | I21: =IF($G21="","",VLOOKUP($G21,webquery!S:V,2,FALSE)) -> -7 | J21: =IF(K21<1,"",VLOOKUP($G21,webquery!$S:$V,4,FALSE)) -> F | K21: 1.5 | M21: =BLANKS!G21 -> 0 | N21: =BLANKS!H21 -> 0 | O21: =IF($M21="","",VLOOKUP($M21,webquery!S:V,2,FALSE)) ->  | P21: =IF(Q21<1,"",VLOOKUP($M21,webquery!$S:$V,4,FALSE)) ->  | Q21: 1.5
A22: Best 3 | C22: =IF(ISERROR(SMALL(C17:C21,1)+SMALL(C17:C21,2)+SMALL(C17:C21,3)),"",SMALL(C17:C21,1)+SMALL(C17:C21,2)+SMALL(C17:C21,3)) -> -19 | D22: =IF(ISERROR(C22-B16/100),"",C22-B16/100) -> -19.034 | G22: Best 3 | I22: =IF(ISERROR(SMALL(I17:I21,1)+SMALL(I17:I21,2)+SMALL(I17:I21,3)),"",SMALL(I17:I21,1)+SMALL(I17:I21,2)+SMALL(I17:I21,3)) -> -20 | J22: =IF(ISERROR(I22-H16/100),"",I22-H16/100) -> -20.038 | M22: Best 3 | O22: =IF(ISERROR(SMALL(O17:O21,1)+SMALL(O17:O21,2)+SMALL(O17:O21,3)),"",SMALL(O17:O21,1)+SMALL(O17:O21,2)+SMALL(O17:O21,3)) ->  | P22: =IF(ISERROR(O22-N16/100),"",O22-N16/100) -> 
A23: Running position | C23: =VLOOKUP(A16,ranks!$C$4:$G$14,4,FALSE) -> 4 | D23: =VLOOKUP(A16,ranks!$C$4:$G$14,5,FALSE) -> 5 | E23: adj for pick | G23: Running position | I23: =VLOOKUP(G16,ranks!$C$4:$G$14,4,FALSE) -> 3 | J23: =VLOOKUP(G16,ranks!$C$4:$G$14,5,FALSE) -> 3 | K23: adj for pick | M23: Running position | O23: =VLOOKUP(M16,ranks!$C$4:$G$14,4,FALSE) ->  | P23: =VLOOKUP(M16,ranks!$C$4:$G$14,5,FALSE) ->  | Q23: adj for pick
A25: ='random picks'!D2 -> BYRON | B25: =SUM(B26:B30)/5 -> 4.8 | G25: ='random picks'!H2 -> STUART D | H25: =SUM(H26:H30)/5 -> 4 | M25: ='random picks'!L2 -> 0 | N25: =SUM(N26:N30)/5 -> 0
A26: =BLANKS!A26 -> Henrik Stenson | B26: =BLANKS!B26 -> 7 | C26: =IF($A26="","",VLOOKUP($A26,webquery!S:V,2,FALSE)) -> -9 | D26: =IF(E26<1,"",VLOOKUP($A26,webquery!$S:V,4,FALSE)) -> F | E26: 1.5 | G26: =BLANKS!D26 -> Adam Scott | H26: =BLANKS!E26 -> 2 | I26: =IF($G26="","",VLOOKUP($G26,webquery!S:V,2,FALSE)) -> -7 | J26: =IF(K26<1,"",VLOOKUP($G26,webquery!$S:$V,4,FALSE)) -> F | K26: 1.5 | M26: =BLANKS!G17 -> 0 | N26: =BLANKS!H26 -> 0
A27: =BLANKS!A27 -> Matt Kuchar | B27: =BLANKS!B27 -> 5 | C27: DNS | D27: DNS | E27: 1.5 | G27: =BLANKS!D27 -> Keegan Bradley | H27: =BLANKS!E27 -> 6 | I27: =IF($G27="","",VLOOKUP($G27,webquery!S:V,2,FALSE)) -> - | J27: =IF(K27<1,"",VLOOKUP($G27,webquery!$S:$V,4,FALSE)) -> - | K27: 1.5 | M27: =BLANKS!G18 -> 0 | N27: =BLANKS!H27 -> 0
A28: =BLANKS!A28 -> Lee Westwood | B28: =BLANKS!B28 -> 6 | C28: =IF($A28="","",VLOOKUP($A28,webquery!S:V,2,FALSE)) -> -7 | D28: =IF(E28<1,"",VLOOKUP($A28,webquery!$S:V,4,FALSE)) -> F | E28: 1.5 | G28: =BLANKS!D28 -> Hideki Matsuyama | H28: =BLANKS!E28 -> 3 | I28: =IF($G28="","",VLOOKUP($G28,webquery!S:V,2,FALSE)) -> 0 | J28: =IF(K28<1,"",VLOOKUP($G28,webquery!$S:$V,4,FALSE)) -> F | K28: 1.5 | M28: =BLANKS!G19 -> 0 | N28: =BLANKS!H28 -> 0
A29: =BLANKS!A29 -> Ryan Moore | B29: =BLANKS!B29 -> 4 | C29: =IF($A29="","",VLOOKUP($A29,webquery!S:V,2,FALSE)) -> -5 | D29: =IF(E29<1,"",VLOOKUP($A29,webquery!$S:V,4,FALSE)) -> F | E29: 1.5 | G29: =BLANKS!D29 -> Zach Johnson | H29: =BLANKS!E29 -> 3 | I29: =IF($G29="","",VLOOKUP($G29,webquery!S:V,2,FALSE)) -> -1 | J29: =IF(K29<1,"",VLOOKUP($G29,webquery!$S:$V,4,FALSE)) -> F | K29: 1.5 | M29: =BLANKS!G20 -> 0 | N29: =BLANKS!H29 -> 0
A30: =BLANKS!A30 -> Jason Dufner | B30: =BLANKS!B30 -> 2 | C30: =IF($A30="","",VLOOKUP($A30,webquery!S:V,2,FALSE)) -> WD | D30: =IF(E30<1,"",VLOOKUP($A30,webquery!$S:V,4,FALSE)) -> - | E30: 1.5 | G30: =BLANKS!D30 -> Webb Simpson | H30: =BLANKS!E30 -> 6 | I30: =IF($G30="","",VLOOKUP($G30,webquery!S:V,2,FALSE)) -> - | J30: =IF(K30<1,"",VLOOKUP($G30,webquery!$S:$V,4,FALSE)) -> - | K30: 1.5 | M30: =BLANKS!G21 -> 0 | N30: =BLANKS!H30 -> 0
A31: Best 3 | C31: =IF(ISERROR(SMALL(C26:C30,1)+SMALL(C26:C30,2)+SMALL(C26:C30,3)),"",SMALL(C26:C30,1)+SMALL(C26:C30,2)+SMALL(C26:C30,3)) -> -21 | D31: =IF(ISERROR(C31-B25/100),"",C31-B25/100) -> -21.048 | G31: Best 3 | I31: =IF(ISERROR(SMALL(I26:I30,1)+SMALL(I26:I30,2)+SMALL(I26:I30,3)),"",SMALL(I26:I30,1)+SMALL(I26:I30,2)+SMALL(I26:I30,3)) -> -8 | J31: =IF(ISERROR(I31-H25/100),"",I31-H25/100) -> -8.04 | M31: Best 3 | O31: =IF(ISERROR(SMALL(O26:O30,1)+SMALL(O26:O30,2)+SMALL(O26:O30,3)),"",SMALL(O26:O30,1)+SMALL(O26:O30,2)+SMALL(O26:O30,3)) ->  | P31: =IF(ISERROR(O31-N25/100),"",O31-N25/100) -> 
A32: Running position | C32: =VLOOKUP(A25,ranks!$C$4:$G$14,4,FALSE) -> 2 | D32: =VLOOKUP(A25,ranks!$C$4:$G$14,5,FALSE) -> 2 | E32: adj for pick | G32: Running position | I32: =VLOOKUP(G25,ranks!$C$4:$G$14,4,FALSE) -> 7 | J32: =VLOOKUP(G25,ranks!$C$4:$G$14,5,FALSE) -> 7 | K32: adj for pick | M32: Running position | O32: =VLOOKUP(M25,ranks!$C$4:$G$14,4,FALSE) ->  | P32: =VLOOKUP(M25,ranks!$C$4:$G$14,5,FALSE) ->  | Q32: adj for pick
A34: ='random picks'!E2 -> STEVER | B34: =SUM(B35:B39)/5 -> 4.6 | G34: ='random picks'!I2 -> 0 | H34: =SUM(H35:H39)/5 -> 0 | M34: 0
A35: =BLANKS!A35 -> Rory McILroy | B35: =BLANKS!B35 -> 1 | C35: =IF($A35="","",VLOOKUP($A35,webquery!S:V,2,FALSE)) -> -13 | D35: =IF(E35<1,"",VLOOKUP($A35,webquery!$S:V,4,FALSE)) -> F | E35: 1.5 | G35: =BLANKS!D35 -> 0 | H35: =BLANKS!E35 -> 0 | I35: =IF(#REF!="","",VLOOKUP(#REF!,webquery!S:V,2,FALSE)) ->  | J35: =IF(K35<1,"",VLOOKUP(#REF!,webquery!$S:$V,4,FALSE)) ->  | K35: 1.5 | M35: =BLANKS!G35 -> 0
A36: =BLANKS!A36 -> Bubba Watson | B36: =BLANKS!B36 -> 2 | C36: =IF($A36="","",VLOOKUP($A36,webquery!S:V,2,FALSE)) -> 2 | D36: =IF(E36<1,"",VLOOKUP($A36,webquery!$S:V,4,FALSE)) -> F | E36: 1.5 | G36: =BLANKS!D36 -> 0 | H36: =BLANKS!E36 -> 0 | I36: =IF($G35="","",VLOOKUP($G35,webquery!S:V,2,FALSE)) ->  | J36: =IF(K36<1,"",VLOOKUP($G35,webquery!$S:$V,4,FALSE)) ->  | K36: 1.5 | M36: =BLANKS!G36 -> 0
A37: =BLANKS!A37 -> Victor Dubuisson | B37: =BLANKS!B37 -> 7 | C37: =IF($A37="","",VLOOKUP($A37,webquery!S:V,2,FALSE)) -> -6 | D37: =IF(E37<1,"",VLOOKUP($A37,webquery!$S:V,4,FALSE)) -> F | E37: 1.5 | G37: =BLANKS!D37 -> 0 | H37: =BLANKS!E37 -> 0 | I37: =IF($G37="","",VLOOKUP($G37,webquery!S:V,2,FALSE)) ->  | J37: =IF(K37<1,"",VLOOKUP($G37,webquery!$S:$V,4,FALSE)) ->  | K37: 1.5 | M37: =BLANKS!G37 -> 0
A38: =BLANKS!A38 -> Angel Cabrera | B38: =BLANKS!B38 -> 6 | C38: =IF($A38="","",VLOOKUP($A38,webquery!S:V,2,FALSE)) -> - | D38: =IF(E38<1,"",VLOOKUP($A38,webquery!$S:V,4,FALSE)) -> - | E38: 1.5 | G38: =BLANKS!D38 -> 0 | H38: =BLANKS!E38 -> 0 | I38: =IF($G38="","",VLOOKUP($G38,webquery!S:V,2,FALSE)) ->  | J38: =IF(K38<1,"",VLOOKUP($G38,webquery!$S:$V,4,FALSE)) ->  | K38: 1.5 | M38: =BLANKS!G38 -> 0
A39: =BLANKS!A39 -> Francesco Molinari | B39: =BLANKS!B39 -> 7 | C39: =IF($A39="","",VLOOKUP($A39,webquery!S:V,2,FALSE)) -> 0 | D39: =IF(E39<1,"",VLOOKUP($A39,webquery!$S:V,4,FALSE)) -> F | E39: 1.5 | G39: =BLANKS!D39 -> 0 | H39: =BLANKS!E39 -> 0 | I39: =IF($G39="","",VLOOKUP($G39,webquery!S:V,2,FALSE)) ->  | J39: =IF(K39<1,"",VLOOKUP($G39,webquery!$S:$V,4,FALSE)) ->  | K39: 1.5 | M39: =BLANKS!G39 -> 0
A40: Best 3 | C40: =IF(ISERROR(SMALL(C35:C39,1)+SMALL(C35:C39,2)+SMALL(C35:C39,3)),"",SMALL(C35:C39,1)+SMALL(C35:C39,2)+SMALL(C35:C39,3)) -> -19 | D40: =IF(ISERROR(C40-B34/100),"",C40-B34/100) -> -19.046 | G40: Best 3 | I40: =IF(ISERROR(SMALL(I35:I39,1)+SMALL(I35:I39,2)+SMALL(I35:I39,3)),"",SMALL(I35:I39,1)+SMALL(I35:I39,2)+SMALL(I35:I39,3)) ->  | J40: =IF(ISERROR(I40-H34/100),"",I40-H34/100) ->  | M40: Best 3
A41: Running position | C41: =VLOOKUP(A34,ranks!$C$4:$G$14,4,FALSE) -> 4 | D41: =VLOOKUP(A34,ranks!$C$4:$G$14,5,FALSE) -> 4 | E41: adj for pick | G41: Running position | I41: =VLOOKUP(G34,ranks!$C$4:$G$14,4,FALSE) ->  | J41: =VLOOKUP(G34,ranks!$C$4:$G$14,5,FALSE) ->  | K41: adj for pick | M41: Running position
A43: To get the correct tee-times you need to make sure you enter the right day of play at the top
A44: Click on The Open logo to update

Sheet webquery
A1: 1 | B1: 2 | C1: 3 | D1: 4 | E1: 5 | F1: 6 | G1: 7 | H1: 8 | I1: 9 | J1: 10 | M1: 11 | Q1: 10 | S1: 11 | T1: 12 | U1: 13 | V1: 14 | W1: 15
R2: Index: | S2: 3 | T2: 10 | U2: 6 | V2: 9
C3: Search Sports | T3: total | U3: t-off | V3: thru
C4: Search Web | R4: 4 | S4: =SUBSTITUTE(INDEX($A:$J,R4,$S$2),"*","") -> Search Web | T4: =IF(INDEX($A:$L,R4,$T$2)="E",0,IF(INDEX($A:$L,R4,$T$2)="MC",100,INDEX($A:$L,R4,$T$2))) -> 0 | U4: =IF(ISERROR(INDEX($A:$J,R4,$U$2)+TIME(5,0,0)),"",INDEX($A:$J,R4,$U$2)+TIME(5,0,0)) -> 05:00:00 | V4: =INDEX($A:$N,R4,$V$2) -> 0
R5: 5 | S5: =SUBSTITUTE(INDEX($A:$J,R5,$S$2),"*","") ->  | T5: =IF(INDEX($A:$L,R5,$T$2)="E",0,IF(INDEX($A:$L,R5,$T$2)="MC",100,INDEX($A:$L,R5,$T$2))) -> 0 | U5: =IF(ISERROR(INDEX($A:$J,R5,$U$2)+TIME(5,0,0)),"",INDEX($A:$J,R5,$U$2)+TIME(5,0,0)) -> 05:00:00 | V5: =INDEX($A:$N,R5,$V$2) -> 0
B6: Pos | C6: Name | D6: 1 | E6: 2 | F6: 3 | G6: 4 | H6: Today | I6: Thru | J6: Total | K6: Strokes | R6: 6 | S6: =SUBSTITUTE(INDEX($A:$J,R6,$S$2),"*","") -> Name | T6: =IF(INDEX($A:$L,R6,$T$2)="E",0,IF(INDEX($A:$L,R6,$T$2)="MC",100,INDEX($A:$L,R6,$T$2))) -> Total | U6: =IF(ISERROR(INDEX($A:$J,R6,$U$2)+TIME(5,0,0)),"",INDEX($A:$J,R6,$U$2)+TIME(5,0,0)) -> 3.208333333 | V6: =INDEX($A:$N,R6,$V$2) -> Thru
B7: 1 | C7: Rory McIlroy | D7: 66 | E7: 67 | F7: 67 | G7: 14:55:00 | H7: -4 | I7: F | J7: -13 | K7: 200 | R7: 7 | S7: =SUBSTITUTE(INDEX($A:$J,R7,$S$2),"*","") -> Rory McIlroy | T7: =IF(INDEX($A:$L,R7,$T$2)="E",0,IF(INDEX($A:$L,R7,$T$2)="MC",100,INDEX($A:$L,R7,$T$2))) -> -13 | U7: =IF(ISERROR(INDEX($A:$J,R7,$U$2)+TIME(5,0,0)),"",INDEX($A:$J,R7,$U$2)+TIME(5,0,0)) -> 67.20833333 | V7: =INDEX($A:$N,R7,$V$2) -> F
B8: 2 | C8: Bernd Wiesberger | D8: 68 | E8: 68 | F8: 65 | G8: 14:55:00 | H8: -6 | I8: F | J8: -12 | K8: 201 | R8: =R7+1 -> 8 | S8: =SUBSTITUTE(INDEX($A:$J,R8,$S$2),"*","") -> Bernd Wiesberger | T8: =IF(INDEX($A:$L,R8,$T$2)="E",0,IF(INDEX($A:$L,R8,$T$2)="MC",100,INDEX($A:$L,R8,$T$2))) -> -12 | U8: =IF(ISERROR(INDEX($A:$J,R8,$U$2)+TIME(5,0,0)),"",INDEX($A:$J,R8,$U$2)+TIME(5,0,0)) -> 65.20833333 | V8: =INDEX($A:$N,R8,$V$2) -> F
B9: 3 | C9: Rickie Fowler | D9: 69 | E9: 66 | F9: 67 | G9: 14:45:00 | H9: -4 | I9: F | J9: -11 | K9: 202 | R9: =R8+1 -> 9 | S9: =SUBSTITUTE(INDEX($A:$J,R9,$S$2),"*","") -> Rickie Fowler | T9: =IF(INDEX($A:$L,R9,$T$2)="E",0,IF(INDEX($A:$L,R9,$T$2)="MC",100,INDEX($A:$L,R9,$T$2))) -> -11 | U9: =IF(ISERROR(INDEX($A:$J,R9,$U$2)+TIME(5,0,0)),"",INDEX($A:$J,R9,$U$2)+TIME(5,0,0)) -> 67.20833333 | V9: =INDEX($A:$N,R9,$V$2) -> F
B10: T4 | C10: Phil Mickelson | D10: 69 | E10: 67 | F10: 67 | G10: 14:45:00 | H10: -4 | I10: F | J10: -10 | K10: 203 | R10: 10 | S10: =SUBSTITUTE(INDEX($A:$J,R10,$S$2),"*","") -> Phil Mickelson | T10: -10 | U10: =IF(ISERROR(INDEX($A:$J,R10,$U$2)+TIME(5,0,0)),"",INDEX($A:$J,R10,$U$2)+TIME(5,0,0)) -> 67.20833333 | V10: F
B11: T4 | C11: Jason Day | D11: 69 | E11: 65 | F11: 69 | G11: 14:35:00 | H11: -2 | I11: F | J11: -10 | K11: 203 | R11: 11 | S11: =SUBSTITUTE(INDEX($A:$J,R11,$S$2),"*","") -> Jason Day | T11: -10 | U11: =IF(ISERROR(INDEX($A:$J,R11,$U$2)+TIME(5,0,0)),"",INDEX($A:$J,R11,$U$2)+TIME(5,0,0)) -> 69.20833333 | V11: F
B12: T6 | C12: Louis Oosthuizen | D12: 70 | E12: 67 | F12: 67 | G12: 14:35:00 | H12: -4 | I12: F | J12: -9 | K12: 204 | R12: 12 | S12: =SUBSTITUTE(INDEX($A:$J,R12,$S$2),"*","") -> Louis Oosthuizen | T12: -9 | U12: =IF(ISERROR(INDEX($A:$J,R12,$U$2)+TIME(5,0,0)),"",INDEX($A:$J,R12,$U$2)+TIME(5,0,0)) -> 67.20833333 | V12: F
B13: T6 | C13: Henrik Stenson | D13: 66 | E13: 71 | F13: 67 | G13: 14:25:00 | H13: -4 | I13: F | J13: -9 | K13: 204 | R13: 13 | S13: =SUBSTITUTE(INDEX($A:$J,R13,$S$2),"*","") -> Henrik Stenson | T13: -9 | U13: =IF(ISERROR(INDEX($A:$J,R13,$U$2)+TIME(5,0,0)),"",INDEX($A:$J,R13,$U$2)+TIME(5,0,0)) -> 67.20833333 | V13: F
B14: T6 | C14: Mikko Ilonen | D14: 67 | E14: 68 | F14: 69 | G14: 14:25:00 | H14: -2 | I14: F | J14: -9 | K14: 204 | R14: 14 | S14: =SUBSTITUTE(INDEX($A:$J,R14,$S$2),"*","") -> Mikko Ilonen | T14: -9 | U14: =IF(ISERROR(INDEX($A:$J,R14,$U$2)+TIME(5,0,0)),"",INDEX($A:$J,R14,$U$2)+TIME(5,0,0)) -> 69.20833333 | V14: F
B15: T6 | C15: Ryan Palmer | D15: 65 | E15: 70 | F15: 69 | G15: 14:15:00 | H15: -2 | I15: F | J15: -9 | K15: 204 | R15: 15 | S15: =SUBSTITUTE(INDEX($A:$J,R15,$S$2),"*","") -> Ryan Palmer | T15: -9 | U15: =IF(ISERROR(INDEX($A:$J,R15,$U$2)+TIME(5,0,0)),"",INDEX($A:$J,R15,$U$2)+TIME(5,0,0)) -> 69.20833333 | V15: F
B16: T10 | C16: Jamie Donaldson | D16: 69 | E16: 70 | F16: 66 | G16: 14:15:00 | H16: -5 | I16: F | J16: -8 | K16: 205 | R16: 16 | S16: =SUBSTITUTE(INDEX($A:$J,R16,$S$2),"*","") -> Jamie Donaldson | T16: -8 | U16: =IF(ISERROR(INDEX($A:$J,R16,$U$2)+TIME(5,0,0)),"",INDEX($A:$J,R16,$U$2)+TIME(5,0,0)) -> 66.20833333 | V16: F
B17: T10 | C17: Graham DeLaet | D17: 69 | E17: 68 | F17: 68 | G17: 14:05:00 | H17: -3 | I17: F | J17: -8 | K17: 205 | R17: 17 | S17: =SUBSTITUTE(INDEX($A:$J,R17,$S$2),"*","") -> Graham DeLaet | T17: -8 | U17: =IF(ISERROR(INDEX($A:$J,R17,$U$2)+TIME(5,0,0)),"",INDEX($A:$J,R17,$U$2)+TIME(5,0,0)) -> 68.20833333 | V17: F
B18: T10 | C18: Steve Stricker | D18: 69 | E18: 68 | F18: 68 | G18: 14:05:00 | H18: -3 | I18: F | J18: -8 | K18: 205 | R18: 18 | S18: =SUBSTITUTE(INDEX($A:$J,R18,$S$2),"*","") -> Steve Stricker | T18: -8 | U18: =IF(ISERROR(INDEX($A:$J,R18,$U$2)+TIME(5,0,0)),"",INDEX($A:$J,R18,$U$2)+TIME(5,0,0)) -> 68.20833333 | V18: F
B19: T13 | C19: Hunter Mahan | D19: 70 | E19: 71 | F19: 65 | G19: 13:55:00 | H19: -6 | I19: F | J19: -7 | K19: 206 | R19: 19 | S19: =SUBSTITUTE(INDEX($A:$J,R19,$S$2),"*","") -> Hunter Mahan | T19: -7 | U19: =IF(ISERROR(INDEX($A:$J,R19,$U$2)+TIME(5,0,0)),"",INDEX($A:$J,R19,$U$2)+TIME(5,0,0)) -> 65.20833333 | V19: F
B20: T13 | C20: Adam Scott | D20: 71 | E20: 69 | F20: 66 | G20: 13:55:00 | H20: -5 | I20: F | J20: -7 | K20: 206 | R20: 20 | S20: =SUBSTITUTE(INDEX($A:$J,R20,$S$2),"*","") -> Adam Scott | T20: -7 | U20: =IF(ISERROR(INDEX($A:$J,R20,$U$2)+TIME(5,0,0)),"",INDEX($A:$J,R20,$U$2)+TIME(5,0,0)) -> 66.20833333 | V20: F
B21: T13 | C21: Kevin Chappell | D21: 65 | E21: 74 | F21: 67 | G21: 13:45:00 | H21: -4 | I21: F | J21: -7 | K21: 206 | R21: 21 | S21: =SUBSTITUTE(INDEX($A:$J,R21,$S$2),"*","") -> Kevin Chappell | T21: -7 | U21: =IF(ISERROR(INDEX($A:$J,R21,$U$2)+TIME(5,0,0)),"",INDEX($A:$J,R21,$U$2)+TIME(5,0,0)) -> 67.20833333 | V21: F
B22: T13 | C22: Lee Westwood | D22: 65 | E22: 72 | F22: 69 | G22: 13:45:00 | H22: -2 | I22: F | J22: -7 | K22: 206 | R22: 22 | S22: =SUBSTITUTE(INDEX($A:$J,R22,$S$2),"*","") -> Lee Westwood | T22: -7 | U22: =IF(ISERROR(INDEX($A:$J,R22,$U$2)+TIME(5,0,0)),"",INDEX($A:$J,R22,$U$2)+TIME(5,0,0)) -> 69.20833333 | V22: F
B23: T13 | C23: Joost Luiten | D23: 68 | E23: 69 | F23: 69 | G23: 13:25:00 | H23: -2 | I23: F | J23: -7 | K23: 206 | R23: 23 | S23: =SUBSTITUTE(INDEX($A:$J,R23,$S$2),"*","") -> Joost Luiten | T23: -7 | U23: =IF(ISERROR(INDEX($A:$J,R23,$U$2)+TIME(5,0,0)),"",INDEX($A:$J,R23,$U$2)+TIME(5,0,0)) -> 69.20833333 | V23: F
B24: T13 | C24: Jim Furyk | D24: 66 | E24: 68 | F24: 72 | G24: 13:25:00 | H24: 1 | I24: F | J24: -7 | K24: 206 | R24: 24 | S24: =SUBSTITUTE(INDEX($A:$J,R24,$S$2),"*","") -> Jim Furyk | T24: -7 | U24: =IF(ISERROR(INDEX($A:$J,R24,$U$2)+TIME(5,0,0)),"",INDEX($A:$J,R24,$U$2)+TIME(5,0,0)) -> 72.20833333 | V24: F
B25: T19 | C25: Brandt Snedeker | D25: 73 | E25: 68 | F25: 66 | G25: 13:15:00 | H25: -5 | I25: F | J25: -6 | K25: 207 | R25: 25 | S25: =SUBSTITUTE(INDEX($A:$J,R25,$S$2),"*","") -> Brandt Snedeker | T25: -6 | U25: =IF(ISERROR(INDEX($A:$J,R25,$U$2)+TIME(5,0,0)),"",INDEX($A:$J,R25,$U$2)+TIME(5,0,0)) -> 66.20833333 | V25: F
B26: T19 | C26: Danny Willett | D26: 68 | E26: 73 | F26: 66 | G26: 13:15:00 | H26: -5 | I26: F | J26: -6 | K26: 207 | R26: 26 | S26: =SUBSTITUTE(INDEX($A:$J,R26,$S$2),"*","") -> Danny Willett | T26: -6 | U26: =IF(ISERROR(INDEX($A:$J,R26,$U$2)+TIME(5,0,0)),"",INDEX($A:$J,R26,$U$2)+TIME(5,0,0)) -> 66.20833333 | V26: F
B27: T19 | C27: Bill Haas | D27: 71 | E27: 68 | F27: 68 | G27: 13:05:00 | H27: -3 | I27: F | J27: -6 | K27: 207 | R27: 27 | S27: =SUBSTITUTE(INDEX($A:$J,R27,$S$2),"*","") -> Bill Haas | T27: -6 | U27: =IF(ISERROR(INDEX($A:$J,R27,$U$2)+TIME(5,0,0)),"",INDEX($A:$J,R27,$U$2)+TIME(5,0,0)) -> 68.20833333 | V27: F
B28: T19 | C28: Victor Dubuisson | D28: 69 | E28: 68 | F28: 70 | G28: 13:05:00 | H28: -1 | I28: F | J28: -6 | K28: 207 | R28: 28 | S28: =SUBSTITUTE(INDEX($A:$J,R28,$S$2),"*","") -> Victor Dubuisson | T28: -6 | U28: =IF(ISERROR(INDEX($A:$J,R28,$U$2)+TIME(5,0,0)),"",INDEX($A:$J,R28,$U$2)+TIME(5,0,0)) -> 70.20833333 | V28: F
B29: T23 | C29: Marc Warren | D29: 71 | E29: 71 | F29: 66 | G29: 12:55:00 | H29: -5 | I29: F | J29: -5 | K29: 208 | R29: 29 | S29: =SUBSTITUTE(INDEX($A:$J,R29,$S$2),"*","") -> Marc Warren | T29: -5 | U29: =IF(ISERROR(INDEX($A:$J,R29,$U$2)+TIME(5,0,0)),"",INDEX($A:$J,R29,$U$2)+TIME(5,0,0)) -> 66.20833333 | V29: F
B30: T23 | C30: Brooks Koepka | D30: 71 | E30: 71 | F30: 66 | G30: 12:55:00 | H30: -5 | I30: F | J30: -5 | K30: 208 | R30: 30 | S30: =SUBSTITUTE(INDEX($A:$J,R30,$S$2),"*","") -> Brooks Koepka | T30: -5 | U30: =IF(ISERROR(INDEX($A:$J,R30,$U$2)+TIME(5,0,0)),"",INDEX($A:$J,R30,$U$2)+TIME(5,0,0)) -> 66.20833333 | V30: F
B31: T23 | C31: Sergio Garcia | D31: 70 | E31: 72 | F31: 66 | G31: 12:45:00 | H31: -5 | I31: F | J31: -5 | K31: 208 | R31: 31 | S31: =SUBSTITUTE(INDEX($A:$J,R31,$S$2),"*","") -> Sergio Garcia | T31: -5 | U31: =IF(ISERROR(INDEX($A:$J,R31,$U$2)+TIME(5,0,0)),"",INDEX($A:$J,R31,$U$2)+TIME(5,0,0)) -> 66.20833333 | V31: F
B32: T23 | C32: Ryan Moore | D32: 73 | E32: 68 | F32: 67 | G32: 12:45:00 | H32: -4 | I32: F | J32: -5 | K32: 208 | R32: 32 | S32: =SUBSTITUTE(INDEX($A:$J,R32,$S$2),"*","") -> Ryan Moore | T32: -5 | U32: =IF(ISERROR(INDEX($A:$J,R32,$U$2)+TIME(5,0,0)),"",INDEX($A:$J,R32,$U$2)+TIME(5,0,0)) -> 67.20833333 | V32: F
B33: T23 | C33: Jimmy Walker | D33: 69 | E33: 71 | F33: 68 | G33: 12:35:00 | H33: -3 | I33: F | J33: -5 | K33: 208 | R33: 33 | S33: =SUBSTITUTE(INDEX($A:$J,R33,$S$2),"*","") -> Jimmy Walker | T33: -5 | U33: =IF(ISERROR(INDEX($A:$J,R33,$U$2)+TIME(5,0,0)),"",INDEX($A:$J,R33,$U$2)+TIME(5,0,0)) -> 68.20833333 | V33: F
B34: T23 | C34: Ernie Els | D34: 70 | E34: 70 | F34: 68 | G34: 12:35:00 | H34: -3 | I34: F | J34: -5 | K34: 208 | R34: 34 | S34: =SUBSTITUTE(INDEX($A:$J,R34,$S$2),"*","") -> Ernie Els | T34: -5 | U34: =IF(ISERROR(INDEX($A:$J,R34,$U$2)+TIME(5,0,0)),"",INDEX($A:$J,R34,$U$2)+TIME(5,0,0)) -> 68.20833333 | V34: F
B35: T23 | C35: Alexander Levy | D35: 69 | E35: 71 | F35: 68 | G35: 12:25:00 | H35: -3 | I35: F | J35: -5 | K35: 208 | R35: 35 | S35: =SUBSTITUTE(INDEX($A:$J,R35,$S$2),"*","") -> Alexander Levy | T35: -5 | U35: =IF(ISERROR(INDEX($A:$J,R35,$U$2)+TIME(5,0,0)),"",INDEX($A:$J,R35,$U$2)+TIME(5,0,0)) -> 68.20833333 | V35: F
B36: T23 | C36: Billy Horschel | D36: 71 | E36: 68 | F36: 69 | G36: 12:25:00 | H36: -2 | I36: F | J36: -5 | K36: 208 | R36: 36 | S36: =SUBSTITUTE(INDEX($A:$J,R36,$S$2),"*","") -> Billy Horschel | T36: -5 | U36: =IF(ISERROR(INDEX($A:$J,R36,$U$2)+TIME(5,0,0)),"",INDEX($A:$J,R36,$U$2)+TIME(5,0,0)) -> 69.20833333 | V36: F
B37: T23 | C37: Nick Watney | D37: 69 | E37: 69 | F37: 70 | G37: 12:15:00 | H37: -1 | I37: F | J37: -5 | K37: 208 | R37: 37 | S37: =SUBSTITUTE(INDEX($A:$J,R37,$S$2),"*","") -> Nick Watney | T37: -5 | U37: =IF(ISERROR(INDEX($A:$J,R37,$U$2)+TIME(5,0,0)),"",INDEX($A:$J,R37,$U$2)+TIME(5,0,0)) -> 70.20833333 | V37: F
B38: T32 | C38: Justin Rose | D38: 70 | E38: 72 | F38: 67 | G38: 12:15:00 | H38: -4 | I38: F | J38: -4 | K38: 209 | R38: 38 | S38: =SUBSTITUTE(INDEX($A:$J,R38,$S$2),"*","") -> Justin Rose | T38: -4 | U38: =IF(ISERROR(INDEX($A:$J,R38,$U$2)+TIME(5,0,0)),"",INDEX($A:$J,R38,$U$2)+TIME(5,0,0)) -> 67.20833333 | V38: F
B39: T32 | C39: Jonas Blixt | D39: 71 | E39: 70 | F39: 68 | G39: 11:55:00 | H39: -3 | I39: F | J39: -4 | K39: 209 | R39: 39 | S39: =SUBSTITUTE(INDEX($A:$J,R39,$S$2),"*","") -> Jonas Blixt | T39: -4 | U39: =IF(ISERROR(INDEX($A:$J,R39,$U$2)+TIME(5,0,0)),"",INDEX($A:$J,R39,$U$2)+TIME(5,0,0)) -> 68.20833333 | V39: F
B40: T32 | C40: Brian Harman | D40: 71 | E40: 69 | F40: 69 | G40: 11:55:00 | H40: -2 | I40: F | J40: -4 | K40: 209 | R40: 40 | S40: =SUBSTITUTE(INDEX($A:$J,R40,$S$2),"*","") -> Brian Harman | T40: -4 | U40: =IF(ISERROR(INDEX($A:$J,R40,$U$2)+TIME(5,0,0)),"",INDEX($A:$J,R40,$U$2)+TIME(5,0,0)) -> 69.20833333 | V40: F
B41: T32 | C41: Charl Schwartzel | D41: 72 | E41: 68 | F41: 69 | G41: 11:45:00 | H41: -2 | I41: F | J41: -4 | K41: 209 | R41: 41 | S41: =SUBSTITUTE(INDEX($A:$J,R41,$S$2),"*","") -> Charl Schwartzel | T41: -4 | U41: =IF(ISERROR(INDEX($A:$J,R41,$U$2)+TIME(5,0,0)),"",INDEX($A:$J,R41,$U$2)+TIME(5,0,0)) -> 69.20833333 | V41: F
B42: T32 | C42: J.B. Holmes | D42: 68 | E42: 72 | F42: 69 | G42: 11:45:00 | H42: -2 | I42: F | J42: -4 | K42: 209 | R42: 42 | S42: =SUBSTITUTE(INDEX($A:$J,R42,$S$2),"*","") -> J.B. Holmes | T42: -4 | U42: =IF(ISERROR(INDEX($A:$J,R42,$U$2)+TIME(5,0,0)),"",INDEX($A:$J,R42,$U$2)+TIME(5,0,0)) -> 69.20833333 | V42: F
B43: T32 | C43: Chris Wood | D43: 66 | E43: 73 | F43: 70 | G43: 11:35:00 | H43: -1 | I43: F | J43: -4 | K43: 209 | R43: 43 | S43: =SUBSTITUTE(INDEX($A:$J,R43,$S$2),"*","") -> Chris Wood | T43: -4 | U43: =IF(ISERROR(INDEX($A:$J,R43,$U$2)+TIME(5,0,0)),"",INDEX($A:$J,R43,$U$2)+TIME(5,0,0)) -> 70.20833333 | V43: F
B44: T38 | C44: Daniel Summerhays | D44: 70 | E44: 72 | F44: 68 | G44: 11:35:00 | H44: -3 | I44: F | J44: -3 | K44: 210 | R44: 44 | S44: =SUBSTITUTE(INDEX($A:$J,R44,$S$2),"*","") -> Daniel Summerhays | T44: -3 | U44: =IF(ISERROR(INDEX($A:$J,R44,$U$2)+TIME(5,0,0)),"",INDEX($A:$J,R44,$U$2)+TIME(5,0,0)) -> 68.20833333 | V44: F
B45: T38 | C45: Luke Donald | D45: 70 | E45: 72 | F45: 68 | G45: 11:25:00 | H45: -3 | I45: F | J45: -3 | K45: 210 | R45: 45 | S45: =SUBSTITUTE(INDEX($A:$J,R45,$S$2),"*","") -> Luke Donald | T45: -3 | U45: =IF(ISERROR(INDEX($A:$J,R45,$U$2)+TIME(5,0,0)),"",INDEX($A:$J,R45,$U$2)+TIME(5,0,0)) -> 68.20833333 | V45: F
B46: T38 | C46: Kenny Perry | D46: 72 | E46: 69 | F46: 69 | G46: 11:25:00 | H46: -2 | I46: F | J46: -3 | K46: 210 | R46: 46 | S46: =SUBSTITUTE(INDEX($A:$J,R46,$S$2),"*","") -> Kenny Perry | T46: -3 | U46: =IF(ISERROR(INDEX($A:$J,R46,$U$2)+TIME(5,0,0)),"",INDEX($A:$J,R46,$U$2)+TIME(5,0,0)) -> 69.20833333 | V46: F
B47: T38 | C47: Edoardo Molinari | D47: 66 | E47: 73 | F47: 71 | G47: 11:15:00 | H47: E | I47: F | J47: -3 | K47: 210 | R47: 47 | S47: =SUBSTITUTE(INDEX($A:$J,R47,$S$2),"*","") -> Edoardo Molinari | T47: -3 | U47: =IF(ISERROR(INDEX($A:$J,R47,$U$2)+TIME(5,0,0)),"",INDEX($A:$J,R47,$U$2)+TIME(5,0,0)) -> 71.20833333 | V47: F
B48: T42 | C48: Branden Grace | D48: 73 | E48: 70 | F48: 68 | G48: 11:15:00 | H48: -3 | I48: F | J48: -2 | K48: 211 | R48: 48 | S48: =SUBSTITUTE(INDEX($A:$J,R48,$S$2),"*","") -> Branden Grace | T48: -2 | U48: =IF(ISERROR(INDEX($A:$J,R48,$U$2)+TIME(5,0,0)),"",INDEX($A:$J,R48,$U$2)+TIME(5,0,0)) -> 68.20833333 | V48: F
B49: T42 | C49: Patrick Reed | D49: 70 | E49: 71 | F49: 70 | G49: 11:05:00 | H49: -1 | I49: F | J49: -2 | K49: 211 | R49: 49 | S49: =SUBSTITUTE(INDEX($A:$J,R49,$S$2),"*","") -> Patrick Reed | T49: -2 | U49: =IF(ISERROR(INDEX($A:$J,R49,$U$2)+TIME(5,0,0)),"",INDEX($A:$J,R49,$U$2)+TIME(5,0,0)) -> 70.20833333 | V49: F
B50: T42 | C50: Jerry Kelly | D50: 67 | E50: 74 | F50: 70 | G50: 11:05:00 | H50: -1 | I50: F | J50: -2 | K50: 211 | R50: 50 | S50: =SUBSTITUTE(INDEX($A:$J,R50,$S$2),"*","") -> Jerry Kelly | T50: -2 | U50: =IF(ISERROR(INDEX($A:$J,R50,$U$2)+TIME(5,0,0)),"",INDEX($A:$J,R50,$U$2)+TIME(5,0,0)) -> 70.20833333 | V50: F
B51: T42 | C51: Scott Brown | D51: 71 | E51: 70 | F51: 70 | G51: 10:55:00 | H51: -1 | I51: F | J51: -2 | K51: 211 | R51: 51 | S51: =SUBSTITUTE(INDEX($A:$J,R51,$S$2),"*","") -> Scott Brown | T51: -2 | U51: =IF(ISERROR(INDEX($A:$J,R51,$U$2)+TIME(5,0,0)),"",INDEX($A:$J,R51,$U$2)+TIME(5,0,0)) -> 70.20833333 | V51: F
B52: T42 | C52: Geoff Ogilvy | D52: 69 | E52: 71 | F52: 71 | G52: 10:55:00 | H52: E | I52: F | J52: -2 | K52: 211 | R52: 52 | S52: =SUBSTITUTE(INDEX($A:$J,R52,$S$2),"*","") -> Geoff Ogilvy | T52: -2 | U52: =IF(ISERROR(INDEX($A:$J,R52,$U$2)+TIME(5,0,0)),"",INDEX($A:$J,R52,$U$2)+TIME(5,0,0)) -> 71.20833333 | V52: F
B53: T42 | C53: Cameron Tringale | D53: 69 | E53: 71 | F53: 71 | G53: 10:45:00 | H53: E | I53: F | J53: -2 | K53: 211 | R53: 53 | S53: =SUBSTITUTE(INDEX($A:$J,R53,$S$2),"*","") -> Cameron Tringale | T53: -2 | U53: =IF(ISERROR(INDEX($A:$J,R53,$U$2)+TIME(5,0,0)),"",INDEX($A:$J,R53,$U$2)+TIME(5,0,0)) -> 71.20833333 | V53: F
B54: T42 | C54: Matt Jones | D54: 68 | E54: 71 | F54: 72 | G54: 10:45:00 | H54: 1 | I54: F | J54: -2 | K54: 211 | R54: 54 | S54: =SUBSTITUTE(INDEX($A:$J,R54,$S$2),"*","") -> Matt Jones | T54: -2 | U54: =IF(ISERROR(INDEX($A:$J,R54,$U$2)+TIME(5,0,0)),"",INDEX($A:$J,R54,$U$2)+TIME(5,0,0)) -> 72.20833333 | V54: F
B55: T42 | C55: Richard Sterne | D55: 70 | E55: 69 | F55: 72 | G55: 10:25:00 | H55: 1 | I55: F | J55: -2 | K55: 211 | R55: 55 | S55: =SUBSTITUTE(INDEX($A:$J,R55,$S$2),"*","") -> Richard Sterne | T55: -2 | U55: =IF(ISERROR(INDEX($A:$J,R55,$U$2)+TIME(5,0,0)),"",INDEX($A:$J,R55,$U$2)+TIME(5,0,0)) -> 72.20833333 | V55: F
B56: T50 | C56: Zach Johnson | D56: 70 | E56: 72 | F56: 70 | G56: 10:25:00 | H56: -1 | I56: F | J56: -1 | K56: 212 | R56: 56 | S56: =SUBSTITUTE(INDEX($A:$J,R56,$S$2),"*","") -> Zach Johnson | T56: -1 | U56: =IF(ISERROR(INDEX($A:$J,R56,$U$2)+TIME(5,0,0)),"",INDEX($A:$J,R56,$U$2)+TIME(5,0,0)) -> 70.20833333 | V56: F
B57: T50 | C57: Thorbjorn Olesen | D57: 71 | E57: 71 | F57: 70 | G57: 10:15:00 | H57: -1 | I57: F | J57: -1 | K57: 212 | R57: 57 | S57: =SUBSTITUTE(INDEX($A:$J,R57,$S$2),"*","") -> Thorbjorn Olesen | T57: -1 | U57: =IF(ISERROR(INDEX($A:$J,R57,$U$2)+TIME(5,0,0)),"",INDEX($A:$J,R57,$U$2)+TIME(5,0,0)) -> 70.20833333 | V57: F
B58: T50 | C58: Ian Poulter | D58: 68 | E58: 73 | F58: 71 | G58: 10:15:00 | H58: E | I58: F | J58: -1 | K58: 212 | R58: 58 | S58: =SUBSTITUTE(INDEX($A:$J,R58,$S$2),"*","") -> Ian Poulter | T58: -1 | U58: =IF(ISERROR(INDEX($A:$J,R58,$U$2)+TIME(5,0,0)),"",INDEX($A:$J,R58,$U$2)+TIME(5,0,0)) -> 71.20833333 | V58: F
B59: T50 | C59: Fabrizio Zanotti | D59: 71 | E59: 70 | F59: 71 | G59: 10:05:00 | H59: E | I59: F | J59: -1 | K59: 212 | R59: 59 | S59: =SUBSTITUTE(INDEX($A:$J,R59,$S$2),"*","") -> Fabrizio Zanotti | T59: -1 | U59: =IF(ISERROR(INDEX($A:$J,R59,$U$2)+TIME(5,0,0)),"",INDEX($A:$J,R59,$U$2)+TIME(5,0,0)) -> 71.20833333 | V59: F
B60: T50 | C60: Brendon de Jonge | D60: 70 | E60: 70 | F60: 72 | G60: 10:05:00 | H60: 1 | I60: F | J60: -1 | K60: 212 | R60: 60 | S60: =SUBSTITUTE(INDEX($A:$J,R60,$S$2),"*","") -> Brendon de Jonge | T60: -1 | U60: =IF(ISERROR(INDEX($A:$J,R60,$U$2)+TIME(5,0,0)),"",INDEX($A:$J,R60,$U$2)+TIME(5,0,0)) -> 72.20833333 | V60: F
B61: T50 | C61: Vijay Singh | D61: 71 | E61: 68 | F61: 73 | G61: 09:55:00 | H61: 2 | I61: F | J61: -1 | K61: 212 | R61: 61 | S61: =SUBSTITUTE(INDEX($A:$J,R61,$S$2),"*","") -> Vijay Singh | T61: -1 | U61: =IF(ISERROR(INDEX($A:$J,R61,$U$2)+TIME(5,0,0)),"",INDEX($A:$J,R61,$U$2)+TIME(5,0,0)) -> 73.20833333 | V61: F
B62: T56 | C62: Hideki Matsuyama | D62: 71 | E62: 72 | F62: 70 | G62: 09:55:00 | H62: -1 | I62: F | J62: E | K62: 213 | R62: 62 | S62: =SUBSTITUTE(INDEX($A:$J,R62,$S$2),"*","") -> Hideki Matsuyama | T62: 0 | U62: =IF(ISERROR(INDEX($A:$J,R62,$U$2)+TIME(5,0,0)),"",INDEX($A:$J,R62,$U$2)+TIME(5,0,0)) -> 70.20833333 | V62: F
B63: T56 | C63: Pat Perez | D63: 71 | E63: 71 | F63: 71 | G63: 09:45:00 | H63: E | I63: F | J63: E | K63: 213 | R63: 63 | S63: =SUBSTITUTE(INDEX($A:$J,R63,$S$2),"*","") -> Pat Perez | T63: 0 | U63: =IF(ISERROR(INDEX($A:$J,R63,$U$2)+TIME(5,0,0)),"",INDEX($A:$J,R63,$U$2)+TIME(5,0,0)) -> 71.20833333 | V63: F
B64: T56 | C64: Jason Bohn | D64: 71 | E64: 71 | F64: 71 | G64: 09:45:00 | H64: E | I64: F | J64: E | K64: 213 | R64: 64 | S64: =SUBSTITUTE(INDEX($A:$J,R64,$S$2),"*","") -> Jason Bohn | T64: 0 | U64: =IF(ISERROR(INDEX($A:$J,R64,$U$2)+TIME(5,0,0)),"",INDEX($A:$J,R64,$U$2)+TIME(5,0,0)) -> 71.20833333 | V64: F
B65: T56 | C65: Koumei Oda | D65: 74 | E65: 68 | F65: 71 | G65: 09:35:00 | H65: E | I65: F | J65: E | K65: 213 | R65: 65 | S65: =SUBSTITUTE(INDEX($A:$J,R65,$S$2),"*","") -> Koumei Oda | T65: 0 | U65: =IF(ISERROR(INDEX($A:$J,R65,$U$2)+TIME(5,0,0)),"",INDEX($A:$J,R65,$U$2)+TIME(5,0,0)) -> 71.20833333 | V65: F
B66: T56 | C66: Francesco Molinari | D66: 71 | E66: 71 | F66: 71 | G66: 09:35:00 | H66: E | I66: F | J66: E | K66: 213 | R66: 66 | S66: =SUBSTITUTE(INDEX($A:$J,R66,$S$2),"*","") -> Francesco Molinari | T66: 0 | U66: =IF(ISERROR(INDEX($A:$J,R66,$U$2)+TIME(5,0,0)),"",INDEX($A:$J,R66,$U$2)+TIME(5,0,0)) -> 71.20833333 | V66: F
B67: T56 | C67: Kevin Stadler | D67: 71 | E67: 70 | F67: 72 | G67: 09:25:00 | H67: 1 | I67: F | J67: E | K67: 213 | R67: 67 | S67: =SUBSTITUTE(INDEX($A:$J,R67,$S$2),"*","") -> Kevin Stadler | T67: 0 | U67: =IF(ISERROR(INDEX($A:$J,R67,$U$2)+TIME(5,0,0)),"",INDEX($A:$J,R67,$U$2)+TIME(5,0,0)) -> 72.20833333 | V67: F
B68: T56 | C68: Gonzalo Fernandez-Casta | D68: 71 | E68: 70 | F68: 72 | G68: 09:25:00 | H68: 1 | I68: F | J68: E | K68: 213 | R68: 68 | S68: =SUBSTITUTE(INDEX($A:$J,R68,$S$2),"*","") -> Gonzalo Fernandez-Casta | T68: 0 | U68: =IF(ISERROR(INDEX($A:$J,R68,$U$2)+TIME(5,0,0)),"",INDEX($A:$J,R68,$U$2)+TIME(5,0,0)) -> 72.20833333 | V68: F
B69: T63 | C69: Graeme McDowell | D69: 73 | E69: 70 | F69: 71 | G69: 09:15:00 | H69: E | I69: F | J69: 1 | K69: 214 | R69: 69 | S69: =SUBSTITUTE(INDEX($A:$J,R69,$S$2),"*","") -> Graeme McDowell | T69: 1 | U69: =IF(ISERROR(INDEX($A:$J,R69,$U$2)+TIME(5,0,0)),"",INDEX($A:$J,R69,$U$2)+TIME(5,0,0)) -> 71.20833333 | V69: F
B70: T63 | C70: Marc Leishman | D70: 71 | E70: 71 | F70: 72 | G70: 09:15:00 | H70: 1 | I70: F | J70: 1 | K70: 214 | R70: 70 | S70: =SUBSTITUTE(INDEX($A:$J,R70,$S$2),"*","") -> Marc Leishman | T70: 1 | U70: =IF(ISERROR(INDEX($A:$J,R70,$U$2)+TIME(5,0,0)),"",INDEX($A:$J,R70,$U$2)+TIME(5,0,0)) -> 72.20833333 | V70: F
B71: T63 | C71: Colin Montgomerie | D71: 70 | E71: 72 | F71: 72 | G71: 09:05:00 | H71: 1 | I71: F | J71: 1 | K71: 214 | R71: 71 | S71: =SUBSTITUTE(INDEX($A:$J,R71,$S$2),"*","") -> Colin Montgomerie | T71: 1 | U71: =IF(ISERROR(INDEX($A:$J,R71,$U$2)+TIME(5,0,0)),"",INDEX($A:$J,R71,$U$2)+TIME(5,0,0)) -> 72.20833333 | V71: F
B72: T63 | C72: Brendan Steele | D72: 71 | E72: 70 | F72: 73 | G72: 09:05:00 | H72: 2 | I72: F | J72: 1 | K72: 214 | R72: 72 | S72: =SUBSTITUTE(INDEX($A:$J,R72,$S$2),"*","") -> Brendan Steele | T72: 1 | U72: =IF(ISERROR(INDEX($A:$J,R72,$U$2)+TIME(5,0,0)),"",INDEX($A:$J,R72,$U$2)+TIME(5,0,0)) -> 73.20833333 | V72: F
B73: T63 | C73: Fredrik Jacobson | D73: 72 | E73: 69 | F73: 73 | G73: 08:55:00 | H73: 2 | I73: F | J73: 1 | K73: 214 | R73: =R72+1 -> 73 | S73: =SUBSTITUTE(INDEX($A:$J,R73,$S$2),"*","") -> Fredrik Jacobson | T73: =IF(INDEX($A:$L,R73,$T$2)="E",0,IF(INDEX($A:$L,R73,$T$2)="MC",100,INDEX($A:$L,R73,$T$2))) -> 1 | U73: =IF(ISERROR(INDEX($A:$J,R73,$U$2)+TIME(5,0,0)),"",INDEX($A:$J,R73,$U$2)+TIME(5,0,0)) -> 73.20833333 | V73: =INDEX($A:$N,R73,$V$2) -> F
B74: T63 | C74: Rafael Cabrera-Bello | D74: 69 | E74: 71 | F74: 74 | G74: 08:55:00 | H74: 3 | I74: F | J74: 1 | K74: 214 | R74: 74 | S74: =SUBSTITUTE(INDEX($A:$J,R74,$S$2),"*","") -> Rafael Cabrera-Bello | T74: 1 | U74: =IF(ISERROR(INDEX($A:$J,R74,$U$2)+TIME(5,0,0)),"",INDEX($A:$J,R74,$U$2)+TIME(5,0,0)) -> 74.20833333 | V74: F
B75: T63 | C75: Robert Karlsson | D75: 71 | E75: 69 | F75: 74 | G75: 08:45:00 | H75: 3 | I75: F | J75: 1 | K75: 214 | R75: 75 | S75: =SUBSTITUTE(INDEX($A:$J,R75,$S$2),"*","") -> Robert Karlsson | T75: 1 | U75: =IF(ISERROR(INDEX($A:$J,R75,$U$2)+TIME(5,0,0)),"",INDEX($A:$J,R75,$U$2)+TIME(5,0,0)) -> 74.20833333 | V75: F
B76: T70 | C76: Shawn Stefani | D76: 68 | E76: 75 | F76: 72 | G76: 08:45:00 | H76: 1 | I76: F | J76: 2 | K76: 215 | R76: 76 | S76: =SUBSTITUTE(INDEX($A:$J,R76,$S$2),"*","") -> Shawn Stefani | T76: 2 | U76: =IF(ISERROR(INDEX($A:$J,R76,$U$2)+TIME(5,0,0)),"",INDEX($A:$J,R76,$U$2)+TIME(5,0,0)) -> 72.20833333 | V76: F
B77: T70 | C77: Bubba Watson | D77: 70 | E77: 72 | F77: 73 | G77: 08:35:00 | H77: 2 | I77: F | J77: 2 | K77: 215 | R77: 77 | S77: =SUBSTITUTE(INDEX($A:$J,R77,$S$2),"*","") -> Bubba Watson | T77: 2 | U77: =IF(ISERROR(INDEX($A:$J,R77,$U$2)+TIME(5,0,0)),"",INDEX($A:$J,R77,$U$2)+TIME(5,0,0)) -> 73.20833333 | V77: F
B78: T72 | C78: Chris Stroud | D78: 70 | E78: 73 | F78: 73 | G78: 08:35:00 | H78: 2 | I78: F | J78: 3 | K78: 216 | R78: 78 | S78: =SUBSTITUTE(INDEX($A:$J,R78,$S$2),"*","") -> Chris Stroud | T78: 3 | U78: =IF(ISERROR(INDEX($A:$J,R78,$U$2)+TIME(5,0,0)),"",INDEX($A:$J,R78,$U$2)+TIME(5,0,0)) -> 73.20833333 | V78: F
B79: T72 | C79: Shane Lowry | D79: 68 | E79: 74 | F79: 74 | G79: 08:25:00 | H79: 3 | I79: F | J79: 3 | K79: 216 | R79: 79 | S79: =SUBSTITUTE(INDEX($A:$J,R79,$S$2),"*","") -> Shane Lowry | T79: 3 | U79: =IF(ISERROR(INDEX($A:$J,R79,$U$2)+TIME(5,0,0)),"",INDEX($A:$J,R79,$U$2)+TIME(5,0,0)) -> 74.20833333 | V79: F
B80: 74 | C80: Brendon Todd | D80: 70 | E80: 73 | F80: 75 | G80: 08:25:00 | H80: 4 | I80: F | J80: 5 | K80: 218 | R80: 80 | S80: =SUBSTITUTE(INDEX($A:$J,R80,$S$2),"*","") -> Brendon Todd | T80: 5 | U80: =IF(ISERROR(INDEX($A:$J,R80,$U$2)+TIME(5,0,0)),"",INDEX($A:$J,R80,$U$2)+TIME(5,0,0)) -> 75.20833333 | V80: F
B81: WD | C81: Jason Dufner | D81: WD | E81: WD | F81: WD | G81: WD | H81: WD | I81: - | J81: WD | K81: WD | R81: 81 | S81: =SUBSTITUTE(INDEX($A:$J,R81,$S$2),"*","") -> Jason Dufner | T81: WD | U81: =IF(ISERROR(INDEX($A:$J,R81,$U$2)+TIME(5,0,0)),"",INDEX($A:$J,R81,$U$2)+TIME(5,0,0)) ->  | V81: -
B82: T75 | C82: Tim Clark | D82: 70 | E82: 74 | F82: MC | G82: MC | H82: - | I82: - | J82: - | K82: 144 | R82: 82 | S82: =SUBSTITUTE(INDEX($A:$J,R82,$S$2),"*","") -> Tim Clark | T82: - | U82: =IF(ISERROR(INDEX($A:$J,R82,$U$2)+TIME(5,0,0)),"",INDEX($A:$J,R82,$U$2)+TIME(5,0,0)) ->  | V82: -
B83: T75 | C83: Erik Compton | D83: 71 | E83: 73 | F83: MC | G83: MC | H83: - | I83: - | J83: - | K83: 144 | R83: 83 | S83: =SUBSTITUTE(INDEX($A:$J,R83,$S$2),"*","") -> Erik Compton | T83: - | U83: =IF(ISERROR(INDEX($A:$J,R83,$U$2)+TIME(5,0,0)),"",INDEX($A:$J,R83,$U$2)+TIME(5,0,0)) ->  | V83: -
B84: T75 | C84: Tommy Fleetwood | D84: 73 | E84: 71 | F84: MC | G84: MC | H84: - | I84: - | J84: - | K84: 144 | R84: 84 | S84: =SUBSTITUTE(INDEX($A:$J,R84,$S$2),"*","") -> Tommy Fleetwood | T84: - | U84: =IF(ISERROR(INDEX($A:$J,R84,$U$2)+TIME(5,0,0)),"",INDEX($A:$J,R84,$U$2)+TIME(5,0,0)) ->  | V84: -
B85: T75 | C85: Padraig Harrington | D85: 73 | E85: 71 | F85: MC | G85: MC | H85: - | I85: - | J85: - | K85: 144 | R85: 85 | S85: =SUBSTITUTE(INDEX($A:$J,R85,$S$2),"*","") -> Padraig Harrington | T85: - | U85: =IF(ISERROR(INDEX($A:$J,R85,$U$2)+TIME(5,0,0)),"",INDEX($A:$J,R85,$U$2)+TIME(5,0,0)) ->  | V85: -
B86: T75 | C86: Ryan Helminen | D86: 73 | E86: 71 | F86: MC | G86: MC | H86: - | I86: - | J86: - | K86: 144 | R86: 86 | S86: =SUBSTITUTE(INDEX($A:$J,R86,$S$2),"*","") -> Ryan Helminen | T86: - | U86: =IF(ISERROR(INDEX($A:$J,R86,$U$2)+TIME(5,0,0)),"",INDEX($A:$J,R86,$U$2)+TIME(5,0,0)) ->  | V86: -
B87: T75 | C87: Russell Henley | D87: 69 | E87: 75 | F87: MC | G87: MC | H87: - | I87: - | J87: - | K87: 144 | R87: 87 | S87: =SUBSTITUTE(INDEX($A:$J,R87,$S$2),"*","") -> Russell Henley | T87: - | U87: =IF(ISERROR(INDEX($A:$J,R87,$U$2)+TIME(5,0,0)),"",INDEX($A:$J,R87,$U$2)+TIME(5,0,0)) ->  | V87: -
B88: T75 | C88: Charley Hoffman | D88: 70 | E88: 74 | F88: MC | G88: MC | H88: - | I88: - | J88: - | K88: 144 | R88: 88 | S88: =SUBSTITUTE(INDEX($A:$J,R88,$S$2),"*","") -> Charley Hoffman | T88: - | U88: =IF(ISERROR(INDEX($A:$J,R88,$U$2)+TIME(5,0,0)),"",INDEX($A:$J,R88,$U$2)+TIME(5,0,0)) ->  | V88: -
B89: T75 | C89: Martin Kaymer | D89: 70 | E89: 74 | F89: MC | G89: MC | H89: - | I89: - | J89: - | K89: 144 | R89: 89 | S89: =SUBSTITUTE(INDEX($A:$J,R89,$S$2),"*","") -> Martin Kaymer | T89: - | U89: =IF(ISERROR(INDEX($A:$J,R89,$U$2)+TIME(5,0,0)),"",INDEX($A:$J,R89,$U$2)+TIME(5,0,0)) ->  | V89: -
B90: T75 | C90: Scott Piercy | D90: 73 | E90: 71 | F90: MC | G90: MC | H90: - | I90: - | J90: - | K90: 144 | R90: 90 | S90: =SUBSTITUTE(INDEX($A:$J,R90,$S$2),"*","") -> Scott Piercy | T90: - | U90: =IF(ISERROR(INDEX($A:$J,R90,$U$2)+TIME(5,0,0)),"",INDEX($A:$J,R90,$U$2)+TIME(5,0,0)) ->  | V90: -
B91: T75 | C91: Gary Woodland | D91: 72 | E91: 72 | F91: MC | G91: MC | H91: - | I91: - | J91: - | K91: 144 | R91: 91 | S91: =SUBSTITUTE(INDEX($A:$J,R91,$S$2),"*","") -> Gary Woodland | T91: - | U91: =IF(ISERROR(INDEX($A:$J,R91,$U$2)+TIME(5,0,0)),"",INDEX($A:$J,R91,$U$2)+TIME(5,0,0)) ->  | V91: -
B92: T85 | C92: Matt Every | D92: 73 | E92: 72 | F92: MC | G92: MC | H92: - | I92: - | J92: - | K92: 145 | R92: 92 | S92: =SUBSTITUTE(INDEX($A:$J,R92,$S$2),"*","") -> Matt Every | T92: - | U92: =IF(ISERROR(INDEX($A:$J,R92,$U$2)+TIME(5,0,0)),"",INDEX($A:$J,R92,$U$2)+TIME(5,0,0)) ->  | V92: -
B93: T85 | C93: Russell Knox | D93: 75 | E93: 70 | F93: MC | G93: MC | H93: - | I93: - | J93: - | K93: 145 | R93: 93 | S93: =SUBSTITUTE(INDEX($A:$J,R93,$S$2),"*","") -> Russell Knox | T93: - | U93: =IF(ISERROR(INDEX($A:$J,R93,$U$2)+TIME(5,0,0)),"",INDEX($A:$J,R93,$U$2)+TIME(5,0,0)) ->  | V93: -
B94: T85 | C94: Johan Kok | D94: 78 | E94: 67 | F94: MC | G94: MC | H94: - | I94: - | J94: - | K94: 145 | R94: 94 | S94: =SUBSTITUTE(INDEX($A:$J,R94,$S$2),"*","") -> Johan Kok | T94: - | U94: =IF(ISERROR(INDEX($A:$J,R94,$U$2)+TIME(5,0,0)),"",INDEX($A:$J,R94,$U$2)+TIME(5,0,0)) ->  | V94: -
B95: T85 | C95: Anirban Lahiri | D95: 72 | E95: 73 | F95: MC | G95: MC | H95: - | I95: - | J95: - | K95: 145 | R95: 95 | S95: =SUBSTITUTE(INDEX($A:$J,R95,$S$2),"*","") -> Anirban Lahiri | T95: - | U95: =IF(ISERROR(INDEX($A:$J,R95,$U$2)+TIME(5,0,0)),"",INDEX($A:$J,R95,$U$2)+TIME(5,0,0)) ->  | V95: -
B96: T85 | C96: Davis Love III | D96: 72 | E96: 73 | F96: MC | G96: MC | H96: - | I96: - | J96: - | K96: 145 | R96: 96 | S96: =SUBSTITUTE(INDEX($A:$J,R96,$S$2),"*","") -> Davis Love III | T96: - | U96: =IF(ISERROR(INDEX($A:$J,R96,$U$2)+TIME(5,0,0)),"",INDEX($A:$J,R96,$U$2)+TIME(5,0,0)) ->  | V96: -
B97: T85 | C97: Ben Martin | D97: 74 | E97: 71 | F97: MC | G97: MC | H97: - | I97: - | J97: - | K97: 145 | R97: 97 | S97: =SUBSTITUTE(INDEX($A:$J,R97,$S$2),"*","") -> Ben Martin | T97: - | U97: =IF(ISERROR(INDEX($A:$J,R97,$U$2)+TIME(5,0,0)),"",INDEX($A:$J,R97,$U$2)+TIME(5,0,0)) ->  | V97: -
B98: T85 | C98: Seung-yul Noh | D98: 68 | E98: 77 | F98: MC | G98: MC | H98: - | I98: - | J98: - | K98: 145 | R98: 98 | S98: =SUBSTITUTE(INDEX($A:$J,R98,$S$2),"*","") -> Seung-yul Noh | T98: - | U98: =IF(ISERROR(INDEX($A:$J,R98,$U$2)+TIME(5,0,0)),"",INDEX($A:$J,R98,$U$2)+TIME(5,0,0)) ->  | V98: -
B99: T85 | C99: Kevin Streelman | D99: 69 | E99: 76 | F99: MC | G99: MC | H99: - | I99: - | J99: - | K99: 145 | R99: 99 | S99: =SUBSTITUTE(INDEX($A:$J,R99,$S$2),"*","") -> Kevin Streelman | T99: - | U99: =IF(ISERROR(INDEX($A:$J,R99,$U$2)+TIME(5,0,0)),"",INDEX($A:$J,R99,$U$2)+TIME(5,0,0)) ->  | V99: -
B100: T85 | C100: Brian Stuard | D100: 71 | E100: 74 | F100: MC | G100: MC | H100: - | I100: - | J100: - | K100: 145 | R100: 100 | S100: =SUBSTITUTE(INDEX($A:$J,R100,$S$2),"*","") -> Brian Stuard | T100: - | U100: =IF(ISERROR(INDEX($A:$J,R100,$U$2)+TIME(5,0,0)),"",INDEX($A:$J,R100,$U$2)+TIME(5,0,0)) ->  | V100: -
B101: T85 | C101: Tom Watson | D101: 72 | E101: 73 | F101: MC | G101: MC | H101: - | I101: - | J101: - | K101: 145 | R101: 101 | S101: =SUBSTITUTE(INDEX($A:$J,R101,$S$2),"*","") -> Tom Watson | T101: - | U101: =IF(ISERROR(INDEX($A:$J,R101,$U$2)+TIME(5,0,0)),"",INDEX($A:$J,R101,$U$2)+TIME(5,0,0)) ->  | V101: -
B102: T95 | C102: Steven Bowditch | D102: 74 | E102: 72 | F102: MC | G102: MC | H102: - | I102: - | J102: - | K102: 146 | R102: 102 | S102: =SUBSTITUTE(INDEX($A:$J,R102,$S$2),"*","") -> Steven Bowditch | T102: - | U102: =IF(ISERROR(INDEX($A:$J,R102,$U$2)+TIME(5,0,0)),"",INDEX($A:$J,R102,$U$2)+TIME(5,0,0)) ->  | V102: -
B103: T95 | C103: Keegan Bradley | D103: 74 | E103: 72 | F103: MC | G103: MC | H103: - | I103: - | J103: - | K103: 146 | R103: 103 | S103: =SUBSTITUTE(INDEX($A:$J,R103,$S$2),"*","") -> Keegan Bradley | T103: - | U103: =IF(ISERROR(INDEX($A:$J,R103,$U$2)+TIME(5,0,0)),"",INDEX($A:$J,R103,$U$2)+TIME(5,0,0)) ->  | V103: -
B104: T95 | C104: Jamie Broce | D104: 74 | E104: 72 | F104: MC | G104: MC | H104: - | I104: - | J104: - | K104: 146 | R104: 104 | S104: =SUBSTITUTE(INDEX($A:$J,R104,$S$2),"*","") -> Jamie Broce | T104: - | U104: =IF(ISERROR(INDEX($A:$J,R104,$U$2)+TIME(5,0,0)),"",INDEX($A:$J,R104,$U$2)+TIME(5,0,0)) ->  | V104: -
B105: T95 | C105: Paul Casey | D105: 74 | E105: 72 | F105: MC | G105: MC | H105: - | I105: - | J105: - | K105: 146 | R105: 105 | S105: =SUBSTITUTE(INDEX($A:$J,R105,$S$2),"*","") -> Paul Casey | T105: - | U105: =IF(ISERROR(INDEX($A:$J,R105,$U$2)+TIME(5,0,0)),"",INDEX($A:$J,R105,$U$2)+TIME(5,0,0)) ->  | V105: -
B106: T95 | C106: Roberto Castro | D106: 73 | E106: 73 | F106: MC | G106: MC | H106: - | I106: - | J106: - | K106: 146 | R106: 106 | S106: =SUBSTITUTE(INDEX($A:$J,R106,$S$2),"*","") -> Roberto Castro | T106: - | U106: =IF(ISERROR(INDEX($A:$J,R106,$U$2)+TIME(5,0,0)),"",INDEX($A:$J,R106,$U$2)+TIME(5,0,0)) ->  | V106: -
B107: T95 | C107: Stuart Deane | D107: 75 | E107: 71 | F107: MC | G107: MC | H107: - | I107: - | J107: - | K107: 146 | R107: 107 | S107: =SUBSTITUTE(INDEX($A:$J,R107,$S$2),"*","") -> Stuart Deane | T107: - | U107: =IF(ISERROR(INDEX($A:$J,R107,$U$2)+TIME(5,0,0)),"",INDEX($A:$J,R107,$U$2)+TIME(5,0,0)) ->  | V107: -
B108: T95 | C108: Harris English | D108: 74 | E108: 72 | F108: MC | G108: MC | H108: - | I108: - | J108: - | K108: 146 | R108: 108 | S108: =SUBSTITUTE(INDEX($A:$J,R108,$S$2),"*","") -> Harris English | T108: - | U108: =IF(ISERROR(INDEX($A:$J,R108,$U$2)+TIME(5,0,0)),"",INDEX($A:$J,R108,$U$2)+TIME(5,0,0)) ->  | V108: -
B109: T95 | C109: Ross Fisher | D109: 73 | E109: 73 | F109: MC | G109: MC | H109: - | I109: - | J109: - | K109: 146 | R109: 109 | S109: =SUBSTITUTE(INDEX($A:$J,R109,$S$2),"*","") -> Ross Fisher | T109: - | U109: =IF(ISERROR(INDEX($A:$J,R109,$U$2)+TIME(5,0,0)),"",INDEX($A:$J,R109,$U$2)+TIME(5,0,0)) ->  | V109: -
B110: T95 | C110: David Hearn | D110: 74 | E110: 72 | F110: MC | G110: MC | H110: - | I110: - | J110: - | K110: 146 | R110: 110 | S110: =SUBSTITUTE(INDEX($A:$J,R110,$S$2),"*","") -> David Hearn | T110: - | U110: =IF(ISERROR(INDEX($A:$J,R110,$U$2)+TIME(5,0,0)),"",INDEX($A:$J,R110,$U$2)+TIME(5,0,0)) ->  | V110: -
B111: T95 | C111: Ryo Ishikawa | D111: 72 | E111: 74 | F111: MC | G111: MC | H111: - | I111: - | J111: - | K111: 146 | R111: 111 | S111: =SUBSTITUTE(INDEX($A:$J,R111,$S$2),"*","") -> Ryo Ishikawa | T111: - | U111: =IF(ISERROR(INDEX($A:$J,R111,$U$2)+TIME(5,0,0)),"",INDEX($A:$J,R111,$U$2)+TIME(5,0,0)) ->  | V111: -
B112: T95 | C112: Chris Kirk | D112: 74 | E112: 72 | F112: MC | G112: MC | H112: - | I112: - | J112: - | K112: 146 | R112: 112 | S112: =SUBSTITUTE(INDEX($A:$J,R112,$S$2),"*","") -> Chris Kirk | T112: - | U112: =IF(ISERROR(INDEX($A:$J,R112,$U$2)+TIME(5,0,0)),"",INDEX($A:$J,R112,$U$2)+TIME(5,0,0)) ->  | V112: -
B113: T95 | C113: Kevin Na | D113: 74 | E113: 72 | F113: MC | G113: MC | H113: - | I113: - | J113: - | K113: 146 | R113: 113 | S113: =SUBSTITUTE(INDEX($A:$J,R113,$S$2),"*","") -> Kevin Na | T113: - | U113: =IF(ISERROR(INDEX($A:$J,R113,$U$2)+TIME(5,0,0)),"",INDEX($A:$J,R113,$U$2)+TIME(5,0,0)) ->  | V113: -
B114: T95 | C114: Rory Sabbatini | D114: 75 | E114: 71 | F114: MC | G114: MC | H114: - | I114: - | J114: - | K114: 146 | R114: 114 | S114: =SUBSTITUTE(INDEX($A:$J,R114,$S$2),"*","") -> Rory Sabbatini | T114: - | U114: =IF(ISERROR(INDEX($A:$J,R114,$U$2)+TIME(5,0,0)),"",INDEX($A:$J,R114,$U$2)+TIME(5,0,0)) ->  | V114: -
B115: T95 | C115: Hideto Tanihara | D115: 74 | E115: 72 | F115: MC | G115: MC | H115: - | I115: - | J115: - | K115: 146 | R115: 115 | S115: =SUBSTITUTE(INDEX($A:$J,R115,$S$2),"*","") -> Hideto Tanihara | T115: - | U115: =IF(ISERROR(INDEX($A:$J,R115,$U$2)+TIME(5,0,0)),"",INDEX($A:$J,R115,$U$2)+TIME(5,0,0)) ->  | V115: -
B116: T95 | C116: Y.E. Yang | D116: 75 | E116: 71 | F116: MC | G116: MC | H116: - | I116: - | J116: - | K116: 146 | R116: 116 | S116: =SUBSTITUTE(INDEX($A:$J,R116,$S$2),"*","") -> Y.E. Yang | T116: - | U116: =IF(ISERROR(INDEX($A:$J,R116,$U$2)+TIME(5,0,0)),"",INDEX($A:$J,R116,$U$2)+TIME(5,0,0)) ->  | V116: -
B117: T110 | C117: Stewart Cink | D117: 72 | E117: 75 | F117: MC | G117: MC | H117: - | I117: - | J117: - | K117: 147 | R117: 117 | S117: =SUBSTITUTE(INDEX($A:$J,R117,$S$2),"*","") -> Stewart Cink | T117: - | U117: =IF(ISERROR(INDEX($A:$J,R117,$U$2)+TIME(5,0,0)),"",INDEX($A:$J,R117,$U$2)+TIME(5,0,0)) ->  | V117: -
B118: T110 | C118: George Coetzee | D118: 73 | E118: 74 | F118: MC | G118: MC | H118: - | I118: - | J118: - | K118: 147 | R118: 118 | S118: =SUBSTITUTE(INDEX($A:$J,R118,$S$2),"*","") -> George Coetzee | T118: - | U118: =IF(ISERROR(INDEX($A:$J,R118,$U$2)+TIME(5,0,0)),"",INDEX($A:$J,R118,$U$2)+TIME(5,0,0)) ->  | V118: -
B119: T110 | C119: Stephen Gallacher | D119: 70 | E119: 77 | F119: MC | G119: MC | H119: - | I119: - | J119: - | K119: 147 | R119: 119 | S119: =SUBSTITUTE(INDEX($A:$J,R119,$S$2),"*","") -> Stephen Gallacher | T119: - | U119: =IF(ISERROR(INDEX($A:$J,R119,$U$2)+TIME(5,0,0)),"",INDEX($A:$J,R119,$U$2)+TIME(5,0,0)) ->  | V119: -
B120: T110 | C120: Chesson Hadley | D120: 74 | E120: 73 | F120: MC | G120: MC | H120: - | I120: - | J120: - | K120: 147 | R120: 120 | S120: =SUBSTITUTE(INDEX($A:$J,R120,$S$2),"*","") -> Chesson Hadley | T120: - | U120: =IF(ISERROR(INDEX($A:$J,R120,$U$2)+TIME(5,0,0)),"",INDEX($A:$J,R120,$U$2)+TIME(5,0,0)) ->  | V120: -
B121: T110 | C121: Charles Howell III | D121: 73 | E121: 74 | F121: MC | G121: MC | H121: - | I121: - | J121: - | K121: 147 | R121: 121 | S121: =SUBSTITUTE(INDEX($A:$J,R121,$S$2),"*","") -> Charles Howell III | T121: - | U121: =IF(ISERROR(INDEX($A:$J,R121,$U$2)+TIME(5,0,0)),"",INDEX($A:$J,R121,$U$2)+TIME(5,0,0)) ->  | V121: -
B122: T110 | C122: Webb Simpson | D122: 73 | E122: 74 | F122: MC | G122: MC | H122: - | I122: - | J122: - | K122: 147 | R122: 122 | S122: =SUBSTITUTE(INDEX($A:$J,R122,$S$2),"*","") -> Webb Simpson | T122: - | U122: =IF(ISERROR(INDEX($A:$J,R122,$U$2)+TIME(5,0,0)),"",INDEX($A:$J,R122,$U$2)+TIME(5,0,0)) ->  | V122: -
B123: T110 | C123: Eric Williamson | D123: 74 | E123: 73 | F123: MC | G123: MC | H123: - | I123: - | J123: - | K123: 147 | R123: 123 | S123: =SUBSTITUTE(INDEX($A:$J,R123,$S$2),"*","") -> Eric Williamson | T123: - | U123: =IF(ISERROR(INDEX($A:$J,R123,$U$2)+TIME(5,0,0)),"",INDEX($A:$J,R123,$U$2)+TIME(5,0,0)) ->  | V123: -
B124: T117 | C124: Darren Clarke | D124: 79 | E124: 69 | F124: MC | G124: MC | H124: - | I124: - | J124: - | K124: 148 | R124: 124 | S124: =SUBSTITUTE(INDEX($A:$J,R124,$S$2),"*","") -> Darren Clarke | T124: - | U124: =IF(ISERROR(INDEX($A:$J,R124,$U$2)+TIME(5,0,0)),"",INDEX($A:$J,R124,$U$2)+TIME(5,0,0)) ->  | V124: -
B125: T117 | C125: John Daly | D125: 76 | E125: 72 | F125: MC | G125: MC | H125: - | I125: - | J125: - | K125: 148 | R125: 125 | S125: =SUBSTITUTE(INDEX($A:$J,R125,$S$2),"*","") -> John Daly | T125: - | U125: =IF(ISERROR(INDEX($A:$J,R125,$U$2)+TIME(5,0,0)),"",INDEX($A:$J,R125,$U$2)+TIME(5,0,0)) ->  | V125: -
B126: T117 | C126: Hyung-Sung Kim | D126: 73 | E126: 75 | F126: MC | G126: MC | H126: - | I126: - | J126: - | K126: 148 | R126: 126 | S126: =SUBSTITUTE(INDEX($A:$J,R126,$S$2),"*","") -> Hyung-Sung Kim | T126: - | U126: =IF(ISERROR(INDEX($A:$J,R126,$U$2)+TIME(5,0,0)),"",INDEX($A:$J,R126,$U$2)+TIME(5,0,0)) ->  | V126: -
B127: T117 | C127: Pablo Larrazabal | D127: 79 | E127: 69 | F127: MC | G127: MC | H127: - | I127: - | J127: - | K127: 148 | R127: 127 | S127: =SUBSTITUTE(INDEX($A:$J,R127,$S$2),"*","") -> Pablo Larrazabal | T127: - | U127: =IF(ISERROR(INDEX($A:$J,R127,$U$2)+TIME(5,0,0)),"",INDEX($A:$J,R127,$U$2)+TIME(5,0,0)) ->  | V127: -
B128: T117 | C128: George McNeill | D128: 73 | E128: 75 | F128: MC | G128: MC | H128: - | I128: - | J128: - | K128: 148 | R128: 128 | S128: =SUBSTITUTE(INDEX($A:$J,R128,$S$2),"*","") -> George McNeill | T128: - | U128: =IF(ISERROR(INDEX($A:$J,R128,$U$2)+TIME(5,0,0)),"",INDEX($A:$J,R128,$U$2)+TIME(5,0,0)) ->  | V128: -
B129: T117 | C129: Jordan Spieth | D129: 71 | E129: 77 | F129: MC | G129: MC | H129: - | I129: - | J129: - | K129: 148 | R129: 129 | S129: =SUBSTITUTE(INDEX($A:$J,R129,$S$2),"*","") -> Jordan Spieth | T129: - | U129: =IF(ISERROR(INDEX($A:$J,R129,$U$2)+TIME(5,0,0)),"",INDEX($A:$J,R129,$U$2)+TIME(5,0,0)) ->  | V129: -
B130: T117 | C130: Tiger Woods | D130: 74 | E130: 74 | F130: MC | G130: MC | H130: - | I130: - | J130: - | K130: 148 | R130: 130 | S130: =SUBSTITUTE(INDEX($A:$J,R130,$S$2),"*","") -> Tiger Woods | T130: - | U130: =IF(ISERROR(INDEX($A:$J,R130,$U$2)+TIME(5,0,0)),"",INDEX($A:$J,R130,$U$2)+TIME(5,0,0)) ->  | V130: -
B131: T124 | C131: Miguel Angel Jimenez | D131: 72 | E131: 77 | F131: MC | G131: MC | H131: - | I131: - | J131: - | K131: 149 | R131: 131 | S131: =SUBSTITUTE(INDEX($A:$J,R131,$S$2),"*","") -> Miguel Angel Jimenez | T131: - | U131: =IF(ISERROR(INDEX($A:$J,R131,$U$2)+TIME(5,0,0)),"",INDEX($A:$J,R131,$U$2)+TIME(5,0,0)) ->  | V131: -
B132: T124 | C132: Rod Perry | D132: 74 | E132: 75 | F132: MC | G132: MC | H132: - | I132: - | J132: - | K132: 149 | R132: 132 | S132: =SUBSTITUTE(INDEX($A:$J,R132,$S$2),"*","") -> Rod Perry | T132: - | U132: =IF(ISERROR(INDEX($A:$J,R132,$U$2)+TIME(5,0,0)),"",INDEX($A:$J,R132,$U$2)+TIME(5,0,0)) ->  | V132: -
B133: T124 | C133: John Senden | D133: 75 | E133: 74 | F133: MC | G133: MC | H133: - | I133: - | J133: - | K133: 149 | R133: 133 | S133: =SUBSTITUTE(INDEX($A:$J,R133,$S$2),"*","") -> John Senden | T133: - | U133: =IF(ISERROR(INDEX($A:$J,R133,$U$2)+TIME(5,0,0)),"",INDEX($A:$J,R133,$U$2)+TIME(5,0,0)) ->  | V133: -
B134: T124 | C134: Scott Stallings | D134: 71 | E134: 78 | F134: MC | G134: MC | H134: - | I134: - | J134: - | K134: 149 | R134: 134 | S134: =SUBSTITUTE(INDEX($A:$J,R134,$S$2),"*","") -> Scott Stallings | T134: - | U134: =IF(ISERROR(INDEX($A:$J,R134,$U$2)+TIME(5,0,0)),"",INDEX($A:$J,R134,$U$2)+TIME(5,0,0)) ->  | V134: -
B135: T128 | C135: Thomas Bjorn | D135: 75 | E135: 75 | F135: MC | G135: MC | H135: - | I135: - | J135: - | K135: 150 | R135: 135 | S135: =SUBSTITUTE(INDEX($A:$J,R135,$S$2),"*","") -> Thomas Bjorn | T135: - | U135: =IF(ISERROR(INDEX($A:$J,R135,$U$2)+TIME(5,0,0)),"",INDEX($A:$J,R135,$U$2)+TIME(5,0,0)) ->  | V135: -
B136: T128 | C136: Thongchai Jaidee | D136: 71 | E136: 79 | F136: MC | G136: MC | H136: - | I136: - | J136: - | K136: 150 | R136: 136 | S136: =SUBSTITUTE(INDEX($A:$J,R136,$S$2),"*","") -> Thongchai Jaidee | T136: - | U136: =IF(ISERROR(INDEX($A:$J,R136,$U$2)+TIME(5,0,0)),"",INDEX($A:$J,R136,$U$2)+TIME(5,0,0)) ->  | V136: -
B137: T128 | C137: Will MacKenzie | D137: 76 | E137: 74 | F137: MC | G137: MC | H137: - | I137: - | J137: - | K137: 150 | R137: =R136+1 -> 137 | S137: =SUBSTITUTE(INDEX($A:$J,R137,$S$2),"*","") -> Will MacKenzie | T137: =IF(INDEX($A:$L,R137,$T$2)="E",0,IF(INDEX($A:$L,R137,$T$2)="MC",100,INDEX($A:$L,R137,$T$2))) -> - | U137: =IF(ISERROR(INDEX($A:$J,R137,$U$2)+TIME(5,0,0)),"",INDEX($A:$J,R137,$U$2)+TIME(5,0,0)) ->  | V137: =INDEX($A:$N,R137,$V$2) -> -
B138: T128 | C138: Steve Schneiter | D138: 72 | E138: 78 | F138: MC | G138: MC | H138: - | I138: - | J138: - | K138: 150 | R138: 138 | S138: =SUBSTITUTE(INDEX($A:$J,R138,$S$2),"*","") -> Steve Schneiter | T138: - | U138: =IF(ISERROR(INDEX($A:$J,R138,$U$2)+TIME(5,0,0)),"",INDEX($A:$J,R138,$U$2)+TIME(5,0,0)) ->  | V138: -
B139: T128 | C139: Bob Sowards | D139: 75 | E139: 75 | F139: MC | G139: MC | H139: - | I139: - | J139: - | K139: 150 | R139: 139 | S139: =SUBSTITUTE(INDEX($A:$J,R139,$S$2),"*","") -> Bob Sowards | T139: - | U139: =IF(ISERROR(INDEX($A:$J,R139,$U$2)+TIME(5,0,0)),"",INDEX($A:$J,R139,$U$2)+TIME(5,0,0)) ->  | V139: -
B140: T133 | C140: Michael Block | D140: 77 | E140: 74 | F140: MC | G140: MC | H140: - | I140: - | J140: - | K140: 151 | R140: 140 | S140: =SUBSTITUTE(INDEX($A:$J,R140,$S$2),"*","") -> Michael Block | T140: - | U140: =IF(ISERROR(INDEX($A:$J,R140,$U$2)+TIME(5,0,0)),"",INDEX($A:$J,R140,$U$2)+TIME(5,0,0)) ->  | V140: -
B141: T133 | C141: K.J. Choi | D141: 72 | E141: 79 | F141: MC | G141: MC | H141: - | I141: - | J141: - | K141: 151 | R141: 141 | S141: =SUBSTITUTE(INDEX($A:$J,R141,$S$2),"*","") -> K.J. Choi | T141: - | U141: =IF(ISERROR(INDEX($A:$J,R141,$U$2)+TIME(5,0,0)),"",INDEX($A:$J,R141,$U$2)+TIME(5,0,0)) ->  | V141: -
B142: T133 | C142: John Huh | D142: 78 | E142: 73 | F142: MC | G142: MC | H142: - | I142: - | J142: - | K142: 151 | R142: 142 | S142: =SUBSTITUTE(INDEX($A:$J,R142,$S$2),"*","") -> John Huh | T142: - | U142: =IF(ISERROR(INDEX($A:$J,R142,$U$2)+TIME(5,0,0)),"",INDEX($A:$J,R142,$U$2)+TIME(5,0,0)) ->  | V142: -
B143: T133 | C143: Jason Kokrak | D143: 78 | E143: 73 | F143: MC | G143: MC | H143: - | I143: - | J143: - | K143: 151 | R143: 143 | S143: =SUBSTITUTE(INDEX($A:$J,R143,$S$2),"*","") -> Jason Kokrak | T143: - | U143: =IF(ISERROR(INDEX($A:$J,R143,$U$2)+TIME(5,0,0)),"",INDEX($A:$J,R143,$U$2)+TIME(5,0,0)) ->  | V143: -
B144: T133 | C144: Shaun Micheel | D144: 72 | E144: 79 | F144: MC | G144: MC | H144: - | I144: - | J144: - | K144: 151 | R144: 144 | S144: =SUBSTITUTE(INDEX($A:$J,R144,$S$2),"*","") -> Shaun Micheel | T144: - | U144: =IF(ISERROR(INDEX($A:$J,R144,$U$2)+TIME(5,0,0)),"",INDEX($A:$J,R144,$U$2)+TIME(5,0,0)) ->  | V144: -
B145: 138 | C145: Brian Norman | D145: 78 | E145: 74 | F145: MC | G145: MC | H145: - | I145: - | J145: - | K145: 152 | R145: 145 | S145: =SUBSTITUTE(INDEX($A:$J,R145,$S$2),"*","") -> Brian Norman | T145: - | U145: =IF(ISERROR(INDEX($A:$J,R145,$U$2)+TIME(5,0,0)),"",INDEX($A:$J,R145,$U$2)+TIME(5,0,0)) ->  | V145: -
B146: T139 | C146: Rich Beem | D146: 74 | E146: 79 | F146: MC | G146: MC | H146: - | I146: - | J146: - | K146: 153 | R146: 146 | S146: =SUBSTITUTE(INDEX($A:$J,R146,$S$2),"*","") -> Rich Beem | T146: - | U146: =IF(ISERROR(INDEX($A:$J,R146,$U$2)+TIME(5,0,0)),"",INDEX($A:$J,R146,$U$2)+TIME(5,0,0)) ->  | V146: -
B147: T139 | C147: Rob Corcoran | D147: 76 | E147: 77 | F147: MC | G147: MC | H147: - | I147: - | J147: - | K147: 153 | R147: 147 | S147: =SUBSTITUTE(INDEX($A:$J,R147,$S$2),"*","") -> Rob Corcoran | T147: - | U147: =IF(ISERROR(INDEX($A:$J,R147,$U$2)+TIME(5,0,0)),"",INDEX($A:$J,R147,$U$2)+TIME(5,0,0)) ->  | V147: -
B148: T141 | C148: Mark Brooks | D148: 78 | E148: 79 | F148: MC | G148: MC | H148: - | I148: - | J148: - | K148: 157 | R148: 148 | S148: =SUBSTITUTE(INDEX($A:$J,R148,$S$2),"*","") -> Mark Brooks | T148: - | U148: =IF(ISERROR(INDEX($A:$J,R148,$U$2)+TIME(5,0,0)),"",INDEX($A:$J,R148,$U$2)+TIME(5,0,0)) ->  | V148: -
B149: T141 | C149: Matteo Manassero | D149: 80 | E149: 77 | F149: MC | G149: MC | H149: - | I149: - | J149: - | K149: 157 | R149: 149 | S149: =SUBSTITUTE(INDEX($A:$J,R149,$S$2),"*","") -> Matteo Manassero | T149: - | U149: =IF(ISERROR(INDEX($A:$J,R149,$U$2)+TIME(5,0,0)),"",INDEX($A:$J,R149,$U$2)+TIME(5,0,0)) ->  | V149: -
B150: T141 | C150: Jim McGovern | D150: 83 | E150: 74 | F150: MC | G150: MC | H150: - | I150: - | J150: - | K150: 157 | R150: 150 | S150: =SUBSTITUTE(INDEX($A:$J,R150,$S$2),"*","") -> Jim McGovern | T150: - | U150: =IF(ISERROR(INDEX($A:$J,R150,$U$2)+TIME(5,0,0)),"",INDEX($A:$J,R150,$U$2)+TIME(5,0,0)) ->  | V150: -
B151: T141 | C151: David McNabb | D151: 77 | E151: 80 | F151: MC | G151: MC | H151: - | I151: - | J151: - | K151: 157 | R151: 151 | S151: =SUBSTITUTE(INDEX($A:$J,R151,$S$2),"*","") -> David McNabb | T151: - | U151: =IF(ISERROR(INDEX($A:$J,R151,$U$2)+TIME(5,0,0)),"",INDEX($A:$J,R151,$U$2)+TIME(5,0,0)) ->  | V151: -
B152: T145 | C152: David Hronek | D152: 81 | E152: 77 | F152: MC | G152: MC | H152: - | I152: - | J152: - | K152: 158 | R152: 152 | S152: =SUBSTITUTE(INDEX($A:$J,R152,$S$2),"*","") -> David Hronek | T152: - | U152: =IF(ISERROR(INDEX($A:$J,R152,$U$2)+TIME(5,0,0)),"",INDEX($A:$J,R152,$U$2)+TIME(5,0,0)) ->  | V152: -
B153: T145 | C153: Jerry Smith | D153: 80 | E153: 78 | F153: MC | G153: MC | H153: - | I153: - | J153: - | K153: 158 | R153: 153 | S153: =SUBSTITUTE(INDEX($A:$J,R153,$S$2),"*","") -> Jerry Smith | T153: - | U153: =IF(ISERROR(INDEX($A:$J,R153,$U$2)+TIME(5,0,0)),"",INDEX($A:$J,R153,$U$2)+TIME(5,0,0)) ->  | V153: -
B154: T145 | C154: Dave Tentis | D154: 79 | E154: 79 | F154: MC | G154: MC | H154: - | I154: - | J154: - | K154: 158 | R154: 154 | S154: =SUBSTITUTE(INDEX($A:$J,R154,$S$2),"*","") -> Dave Tentis | T154: - | U154: =IF(ISERROR(INDEX($A:$J,R154,$U$2)+TIME(5,0,0)),"",INDEX($A:$J,R154,$U$2)+TIME(5,0,0)) ->  | V154: -
B155: T148 | C155: Frank Esposito | D155: 83 | E155: 78 | F155: MC | G155: MC | H155: - | I155: - | J155: - | K155: 161 | R155: 155 | S155: =SUBSTITUTE(INDEX($A:$J,R155,$S$2),"*","") -> Frank Esposito | T155: - | U155: =IF(ISERROR(INDEX($A:$J,R155,$U$2)+TIME(5,0,0)),"",INDEX($A:$J,R155,$U$2)+TIME(5,0,0)) ->  | V155: -
B156: T148 | C156: Aaron Krueger | D156: 84 | E156: 77 | F156: MC | G156: MC | H156: - | I156: - | J156: - | K156: 161 | R156: 156 | S156: =SUBSTITUTE(INDEX($A:$J,R156,$S$2),"*","") -> Aaron Krueger | T156: - | U156: =IF(ISERROR(INDEX($A:$J,R156,$U$2)+TIME(5,0,0)),"",INDEX($A:$J,R156,$U$2)+TIME(5,0,0)) ->  | V156: -
B157: 150 | C157: Dustin Volk | D157: 81 | E157: 82 | F157: MC | G157: MC | H157: - | I157: - | J157: - | K157: 163 | R157: 157 | S157: =SUBSTITUTE(INDEX($A:$J,R157,$S$2),"*","") -> Dustin Volk | T157: - | U157: =IF(ISERROR(INDEX($A:$J,R157,$U$2)+TIME(5,0,0)),"",INDEX($A:$J,R157,$U$2)+TIME(5,0,0)) ->  | V157: -
B158: 151 | C158: Matt Pesta | D158: 79 | E158: 89 | F158: MC | G158: MC | H158: - | I158: - | J158: - | K158: 168 | R158: 158 | S158: =SUBSTITUTE(INDEX($A:$J,R158,$S$2),"*","") -> Matt Pesta | T158: - | U158: =IF(ISERROR(INDEX($A:$J,R158,$U$2)+TIME(5,0,0)),"",INDEX($A:$J,R158,$U$2)+TIME(5,0,0)) ->  | V158: -
B159: 152 | C159: Kiradech Aphibarnrat | D159: 72 | E159: WD | F159: WD | G159: WD | H159: - | I159: - | J159: - | K159: 72 | R159: 159 | S159: =SUBSTITUTE(INDEX($A:$J,R159,$S$2),"*","") -> Kiradech Aphibarnrat | T159: - | U159: =IF(ISERROR(INDEX($A:$J,R159,$U$2)+TIME(5,0,0)),"",INDEX($A:$J,R159,$U$2)+TIME(5,0,0)) ->  | V159: -
B160: 153 | C160: Ben Crane | D160: 74 | E160: WD | F160: WD | G160: WD | H160: - | I160: - | J160: - | K160: 74 | R160: 160 | S160: =SUBSTITUTE(INDEX($A:$J,R160,$S$2),"*","") -> Ben Crane | T160: - | U160: =IF(ISERROR(INDEX($A:$J,R160,$U$2)+TIME(5,0,0)),"",INDEX($A:$J,R160,$U$2)+TIME(5,0,0)) ->  | V160: -
B161: 154 | C161: Boo Weekley | D161: 80 | E161: WD | F161: WD | G161: WD | H161: - | I161: - | J161: - | K161: 80 | R161: 161 | S161: =SUBSTITUTE(INDEX($A:$J,R161,$S$2),"*","") -> Boo Weekley | T161: - | U161: =IF(ISERROR(INDEX($A:$J,R161,$U$2)+TIME(5,0,0)),"",INDEX($A:$J,R161,$U$2)+TIME(5,0,0)) ->  | V161: -
B162: 155 | C162: Angel Cabrera | D162: 82 | E162: WD | F162: WD | G162: WD | H162: - | I162: - | J162: - | K162: 82 | R162: 162 | S162: =SUBSTITUTE(INDEX($A:$J,R162,$S$2),"*","") -> Angel Cabrera | T162: - | U162: =IF(ISERROR(INDEX($A:$J,R162,$U$2)+TIME(5,0,0)),"",INDEX($A:$J,R162,$U$2)+TIME(5,0,0)) ->  | V162: -

Sheet ranks
C1: Positions
A3: row | B3: col | C3: Player | D3: Score | E3: Score adj | F3: Rank | G3: Rank adj
A4: 1 | B4: 1 | C4: =INDEX(results!$A$7:$Q$42,$A4,$B4) -> DEANO | D4: =INDEX(results!$A$7:$Q$42,$A4+6,$B4+2) -> -12 | E4: =INDEX(results!$A$7:$Q$42,$A4+6,$B4+3) -> -12.044 | F4: =IF(ISERROR(RANK(D4,$D$4:$D$14,1)),"",RANK(D4,$D$4:$D$14,1)) -> 6 | G4: =IF(ISERROR(RANK(E4,$E$4:$E$14,1)),"",RANK(E4,$E$4:$E$14,1)) -> 6 | I4: round 1 | J4: Player | K4: Score | L4: Score adj | M4: Rank | N4: Rank adj
A5: =A4+9 -> 10 | B5: 1 | C5: =INDEX(results!$A$7:$Q$42,$A5,$B5) -> TEZ | D5: =INDEX(results!$A$7:$Q$42,$A5+6,$B5+2) -> -19 | E5: =INDEX(results!$A$7:$Q$42,$A5+6,$B5+3) -> -19.034 | F5: 4 | G5: =IF(ISERROR(RANK(E5,$E$4:$E$14,1)),"",RANK(E5,$E$4:$E$14,1)) -> 5 | J5: BYRON | K5: -9 | L5: -9.048 | M5: 1 | N5: 1
A6: =A5+9 -> 19 | B6: 1 | C6: =INDEX(results!$A$7:$Q$42,$A6,$B6) -> BYRON | D6: =INDEX(results!$A$7:$Q$42,$A6+6,$B6+2) -> -21 | E6: =INDEX(results!$A$7:$Q$42,$A6+6,$B6+3) -> -21.048 | F6: 2 | G6: 2 | J6: STEVER | K6: -8 | L6: -8.046 | M6: 2 | N6: 2
A7: =A6+9 -> 28 | B7: 1 | C7: =INDEX(results!$A$7:$Q$42,$A7,$B7) -> STEVER | D7: =INDEX(results!$A$7:$Q$42,$A7+6,$B7+2) -> -19 | E7: =INDEX(results!$A$7:$Q$42,$A7+6,$B7+3) -> -19.046 | F7: 4 | G7: 4 | J7: CRAIG T | K7: -7 | L7: -7.038 | M7: 3 | N7: 3
A8: 1 | B8: =B4+6 -> 7 | C8: =INDEX(results!$A$7:$Q$42,$A8,$B8) -> JOHN C | D8: =INDEX(results!$A$7:$Q$42,$A8+6,$B8+2) -> -23 | E8: =INDEX(results!$A$7:$Q$42,$A8+6,$B8+3) -> -23.03 | F8: 1 | G8: 1 | J8: TEZ | K8: -7 | L8: -7.034 | M8: 3 | N8: 4
A9: =A8+9 -> 10 | B9: 7 | C9: =INDEX(results!$A$7:$Q$42,$A9,$B9) -> CRAIG T | D9: =INDEX(results!$A$7:$Q$42,$A9+6,$B9+2) -> -20 | E9: =INDEX(results!$A$7:$Q$42,$A9+6,$B9+3) -> -20.038 | F9: 3 | G9: 3 | J9: JOHN C | K9: -5 | L9: -5.03 | M9: 5 | N9: 5
A10: =A9+9 -> 19 | B10: 7 | C10: =INDEX(results!$A$7:$Q$42,$A10,$B10) -> STUART D | D10: =INDEX(results!$A$7:$Q$42,$A10+6,$B10+2) -> -8 | E10: =INDEX(results!$A$7:$Q$42,$A10+6,$B10+3) -> -8.04 | F10: 7 | G10: 7 | J10: DEANO | K10: -4 | L10: -4.044 | M10: 6 | N10: 6
A11: =A10+9 -> 28 | B11: 7 | C11: =INDEX(results!$A$7:$Q$42,$A11,$B11) -> 0 | D11: =INDEX(results!$A$7:$Q$42,$A11+6,$B11+2) ->  | E11: =INDEX(results!$A$7:$Q$42,$A11+6,$B11+3) ->  | J11: STUART D | K11: -1 | L11: -1.04 | M11: 7 | N11: 7
A12: 1 | B12: 13 | C12: =INDEX(results!$A$7:$Q$42,$A12,$B12) -> 0 | D12: =INDEX(results!$A$7:$Q$42,$A12+6,$B12+2) ->  | E12: =INDEX(results!$A$7:$Q$42,$A12+6,$B12+3) -> 
A13: 10 | B13: 13 | C13: =INDEX(results!$A$7:$Q$42,$A13,$B13) -> 0 | D13: =INDEX(results!$A$7:$Q$42,$A13+6,$B13+2) ->  | E13: =INDEX(results!$A$7:$Q$42,$A13+6,$B13+3) -> 
A14: 19 | B14: =B9+6 -> 13 | C14: =INDEX(results!$A$7:$Q$42,$A14,$B14) -> 0 | D14: =INDEX(results!$A$7:$Q$42,$A14+6,$B14+2) ->  | E14: =INDEX(results!$A$7:$Q$42,$A14+6,$B14+3) ->  | I14: round 2 | J14: Player | K14: Score | L14: Score adj | M14: Rank | N14: Rank adj
J15: STEVER | K15: -14 | L15: -14.046 | M15: 1 | N15: 1
J16: JOHN C | K16: -13 | L16: -13.03 | M16: 2 | N16: 2
J17: BYRON | K17: -11 | L17: -11.048 | M17: 3 | N17: 3
C18: Put sorted scores here for posting to website | J18: CRAIG T | K18: -11 | L18: -11.038 | M18: 3 | N18: 4
J19: TEZ | K19: -10 | L19: -10.034 | M19: 5 | N19: 5
B20: 7 | C20: Player | D20: Score | E20: Score adj | F20: Rank | G20: Rank adj | J20: DEANO | K20: -9 | L20: -9.044 | M20: 6 | N20: 6
B21: 13 | C21: JOHN C | D21: -23 | E21: -23.03 | F21: 1 | G21: 1 | J21: STUART D | K21: -1 | L21: -1.04 | M21: 7 | N21: 7
B22: 1 | C22: BYRON | D22: -21 | E22: -21.048 | F22: 2 | G22: 2
B23: 1 | C23: CRAIG T | D23: -20 | E23: -20.038 | F23: 3 | G23: 3 | I23: round 3 | J23: Player | K23: Score | L23: Score adj | M23: Rank | N23: Rank adj
B24: 1 | C24: STEVER | D24: -19 | E24: -19.046 | F24: 4 | G24: 4 | J24: JOHN C | K24: -23 | L24: -23.03 | M24: 1 | N24: 1
B25: 13 | C25: TEZ | D25: -19 | E25: -19.034 | F25: 4 | G25: 5 | J25: BYRON | K25: -21 | L25: -21.048 | M25: 2 | N25: 2
B26: 7 | C26: DEANO | D26: -12 | E26: -12.044 | F26: 6 | G26: 6 | J26: CRAIG T | K26: -20 | L26: -20.038 | M26: 3 | N26: 3
B27: 1 | C27: STUART D | D27: -8 | E27: -8.04 | F27: 7 | G27: 7 | J27: STEVER | K27: -19 | L27: -19.046 | M27: 4 | N27: 4
B28: 7 | C28: 0 | J28: TEZ | K28: -19 | L28: -19.034 | M28: 4 | N28: 5
B29: 7 | C29: 0 | J29: DEANO | K29: -12 | L29: -12.044 | M29: 6 | N29: 6
B30: 13 | C30: Dean | J30: STUART D | K30: -8 | L30: -8.04 | M30: 7 | N30: 7
C31: Shem
C38: Average scores of picks | D38: Avg | E38: Rank
C39: Pick 1 | D39: =AVERAGE(results!C8,results!C17,results!C26,results!C35,results!I8,results!I17,results!I26,results!I35,results!O8,results!O17,results!O26,results!O35) ->  | E39: =RANK(D39,$D$39:$D$43,1) -> 
C40: Pick 2 | D40: =AVERAGE(results!C9,results!C18,results!C27,results!C36,results!I9,results!I18,results!I27,results!I36,results!O9,results!O18,results!O27,results!O36) ->  | E40: =RANK(D40,$D$39:$D$43,1) -> 
C41: Pick 3 | D41: =AVERAGE(results!C10,results!C19,results!C28,results!C37,results!I10,results!I19,results!I28,results!I37,results!O10,results!O19,results!O28,results!O37) ->  | E41: =RANK(D41,$D$39:$D$43,1) -> 
C42: Pick 4 | D42: =AVERAGE(results!C11,results!C20,results!C29,results!C38,results!I11,results!I20,results!I29,results!I38,results!O11,results!O20,results!O29,results!O38) ->  | E42: =RANK(D42,$D$39:$D$43,1) -> 
C43: Pick 5 | D43: =AVERAGE(results!C12,results!C21,results!C30,results!C39,results!I12,results!I21,results!I30,results!I39,results!O12,results!O21,results!O30,results!O39) ->  | E43: =RANK(D43,$D$39:$D$43,1) -> 
C45: NEEDS UPDATING

Sheet BLANKS
A1: The US PGA 2014
A4: Day 0
A6: =results!A7 -> DEANO | B6: Pick | D6: =results!G7 -> JOHN C | E6: Pick | G6: =results!M7 -> 0 | H6: Pick
B7: =SUM(B8:B12)/5 -> 4.4 | E7: =SUM(E8:E12)/5 -> 3 | H7: =SUM(H8:H12)/5 -> 0
A8: Rickie Fowler | B8: ='random picks'!B90 -> 3 | D8: Sergio Garcia | E8: ='random picks'!F90 -> 5 | H8: ='random picks'!J90 -> 0
A9: Graeme McDowell | B9: ='random picks'!B91 -> 4 | D9: Tiger / Pat Reed | E9: ='random picks'!F91 -> 3 | H9: ='random picks'!J91 -> 0
A10: Marc Leishman | B10: ='random picks'!B92 -> 5 | D10: Martin Kaymer | E10: ='random picks'!F92 -> 2 | H10: ='random picks'!J92 -> 0
A11: Harris English | B11: ='random picks'!B93 -> 5 | D11: Jason Day | E11: ='random picks'!F93 -> 1 | H11: ='random picks'!J93 -> 0
A12: Geoff Ogilvy | B12: ='random picks'!B94 -> 5 | D12: Steve Stricker | E12: ='random picks'!F94 -> 4 | H12: ='random picks'!J94 -> 0
A13: Best 3 | D13: Best 3 | G13: Best 3
A14: Running position | D14: Running position | G14: Running position
A15: =results!A16 -> TEZ | D15: =results!G16 -> CRAIG T | G15: =results!M16 -> 0
B16: =SUM(B17:B21)/5 -> 3.4 | E16: =SUM(E17:E21)/5 -> 3.8 | H16: =SUM(H17:H21)/5 -> 0
A17: Phil Mickelson | B17: ='random picks'!C90 -> 4 | D17: Justin Rose | E17: ='random picks'!G90 -> 6 | H17: ='random picks'!K90 -> 0
A18: Jordan Spieth | B18: ='random picks'!C91 -> 1 | D18: Charl Schwartzel | E18: ='random picks'!G91 -> 7 | H18: ='random picks'!K91 -> 0
A19: Jimmy Walker | B19: ='random picks'!C92 -> 4 | D19: Jim Furyk | E19: ='random picks'!G92 -> 1 | H19: ='random picks'!K92 -> 0
A20: J.B. Holmes | B20: ='random picks'!C93 -> 7 | D20: Brandt Snedeker | E20: ='random picks'!G93 -> 2 | H20: ='random picks'!K93 -> 0
A21: Luke Donald | B21: ='random picks'!C94 -> 1 | D21: Hunter Mahan | E21: ='random picks'!G94 -> 3 | H21: ='random picks'!K94 -> 0
A22: Best 3 | D22: Best 3 | G22: Best 3
A23: Running position | D23: Running position | G23: Running position
A24: =results!A25 -> BYRON | D24: =results!G25 -> STUART D | G24: =results!M25 -> 0
B25: =SUM(B26:B30)/5 -> 4.8 | E25: =SUM(E26:E30)/5 -> 4 | H25: =SUM(H26:H30)/5 -> 0
A26: Henrik Stenson | B26: ='random picks'!D90 -> 7 | D26: Adam Scott | E26: ='random picks'!H90 -> 2 | H26: ='random picks'!L90 -> 0
A27: Matt Kuchar | B27: ='random picks'!D91 -> 5 | D27: Keegan Bradley | E27: ='random picks'!H91 -> 6 | H27: ='random picks'!L91 -> 0
A28: Lee Westwood | B28: ='random picks'!D92 -> 6 | D28: Hideki Matsuyama | E28: ='random picks'!H92 -> 3 | H28: ='random picks'!L92 -> 0
A29: Ryan Moore | B29: ='random picks'!D93 -> 4 | D29: Zach Johnson | E29: ='random picks'!H93 -> 3 | H29: ='random picks'!L93 -> 0
A30: Jason Dufner | B30: ='random picks'!D94 -> 2 | D30: Webb Simpson | E30: ='random picks'!H94 -> 6 | H30: ='random picks'!L94 -> 0
A31: Best 3 | D31: Best 3 | G31: Best 3
A32: Running position | D32: Running position | G32: Running position
A33: =results!A34 -> STEVER | D33: =results!G34 -> 0 | G33: =results!M34 -> 0
B34: =SUM(B35:B39)/5 -> 4.6 | E34: =SUM(E35:E39)/5 -> 0 | H34: =SUM(H35:H39)/5 -> 0
A35: Rory McILroy | B35: ='random picks'!E90 -> 1 | E35: ='random picks'!I90 -> 0 | H35: ='random picks'!M90 -> 0
A36: Bubba Watson | B36: ='random picks'!E91 -> 2 | E36: ='random picks'!I91 -> 0 | H36: ='random picks'!M91 -> 0
A37: Victor Dubuisson | B37: ='random picks'!E92 -> 7 | E37: ='random picks'!I92 -> 0 | H37: ='random picks'!M92 -> 0
A38: Angel Cabrera | B38: ='random picks'!E93 -> 6 | E38: ='random picks'!I93 -> 0 | H38: ='random picks'!M93 -> 0
A39: Francesco Molinari | B39: ='random picks'!E94 -> 7 | E39: ='random picks'!I94 -> 0 | H39: ='random picks'!M94 -> 0
A40: Best 3 | D40: Best 3
A41: Running position | D41: Running position

Sheet PAYERS
A1: WHO | B1: PAID | C1: TO PAY | D1: ATTEND | E1: PICKS
A3: =results!A7 -> DEANO | B3: NO | C3: YES | D3: YES | E3: -
A4: =results!A16 -> TEZ | B4: YES | D4: YES | E4: -
A5: =results!A25 -> BYRON | B5: NO | C5: YES | D5: NO | E5: NO
A6: =results!A34 -> STEVER | B6: NO | C6: YES | D6: YES | E6: -
A7: =results!G7 -> JOHN C | B7: NO | C7: YES | D7: NO | E7: NO
A8: =results!G16 -> CRAIG T | B8: YES | D8: NO | E8: NO
A9: =results!G25 -> STUART D | B9: YES | D9: NO | E9: NO
A10: =results!G34 -> 0 | B10: YES | D10: YES | E10: -

Sheet random picks
B2: DEANO | C2: TEZ | D2: BYRON | E2: STEVER | F2: JOHN C | G2: CRAIG T | H2: STUART D
A3: Random number generator for pick order
A4: R1 | B4: =RAND() -> 0.9976341623 | C4: 0.7043403206 | D4: 0.9626345124 | E4: 0.1035472247 | F4: 0.8962058107 | G4: 0.1787164613 | H4: 0.1868960229 | I4: 0.1162253321 | J4: 0.01243828975 | K4: 0.7677282407
A5: R2 | B5: 0.1200152184 | C5: 0.5560937293 | D5: 0.547709662 | E5: 0.06112439739 | F5: 0.1715972774 | G5: 0.8445607311 | H5: 0.5537188211 | I5: 0.4643311371 | J5: 0.5413243304 | K5: 0.8065169607
A6: R3 | B6: 0.3086854771 | C6: 0.0713171753 | D6: 0.6443197327 | E6: 0.8836732854 | F6: 0.5240830189 | G6: 0.7652470755 | H6: 0.6869962228 | I6: 0.06833615085 | J6: 0.1588407593 | K6: 0.4467068696
A7: R4 | B7: 0.334408226 | C7: 0.4509332445 | D7: 0.4805248374 | E7: 0.6364728386 | F7: 0.9100308839 | G7: 0.8005355833 | H7: 0.05360817956 | I7: 0.4060974638 | J7: 0.6984965715 | K7: 0.7301278587
A8: R5 | B8: 0.4778259121 | C8: 0.5323694631 | D8: 0.04217844207 | E8: 0.9648872919 | F8: 0.5194353623 | G8: 0.1664761033 | H8: 0.4914842643 | I8: 0.06738094599 | J8: 0.2582163947 | K8: 0.7852973277
A9: R1 | B9: =RANK(B4,$B4:$L4) -> 1 | C9: 5 | D9: 2 | E9: 9 | F9: 3 | G9: 7 | H9: 6 | I9: 8 | J9: 10 | K9: 4
A10: R2 | B10: =RANK(B5,$B5:$L5) -> 9 | C10: 3 | D10: 5 | E10: 10 | F10: 8 | G10: 1 | H10: 4 | I10: 7 | J10: 6 | K10: 2
A11: R3 | B11: =RANK(B6,$B6:$L6) -> 7 | C11: 9 | D11: 4 | E11: 1 | F11: 5 | G11: 2 | H11: 3 | I11: 10 | J11: 8 | K11: 6
A12: R4 | B12: =RANK(B7,$B7:$L7) -> 9 | C12: 7 | D12: 6 | E12: 5 | F12: 1 | G12: 2 | H12: 10 | I12: 8 | J12: 4 | K12: 3
A13: R5 | B13: =RANK(B8,$B8:$L8) -> 6 | C13: 3 | D13: 10 | E13: 1 | F13: 4 | G13: 8 | H13: 5 | I13: 9 | J13: 7 | K13: 2
A15: Paste special for main sheet
B16: =B2 -> DEANO | C16: =C2 -> TEZ | D16: BYRON | E16: STEVER | F16: JOHN C | G16: CRAIG T | H16: STUART D | I16: 0 | J16: 0
A17: R1 | B17: 5 | C17: 9 | D17: 7 | E17: 6 | F17: 8 | G17: 2 | H17: 3 | I17: 1 | J17: 4
A18: R2 | B18: 4 | C18: 1 | D18: 3 | E18: 5 | F18: 6 | G18: 8 | H18: 7 | I18: 9 | J18: 2
A19: R3 | B19: 7 | C19: 9 | D19: 1 | E19: 3 | F19: 8 | G19: 6 | H19: 5 | I19: 2 | J19: 4
A20: R4 | B20: 4 | C20: 6 | D20: 1 | E20: 3 | F20: 5 | G20: 9 | H20: 7 | I20: 2 | J20: 8
A21: R5 | B21: 9 | C21: 4 | D21: 6 | E21: 5 | F21: 7 | G21: 2 | H21: 3 | I21: 1 | J21: 8
B22: =B2 -> DEANO | C22: =C2 -> TEZ | D22: BYRON | E22: STEVER | F22: JOHN C | G22: CRAIG T | H22: STUART D | I22: 0 | J22: 0 | K22: 0 | L22: 0
A23: R1 | B23: =RAND() -> 0.767142181 | C23: 0.3417319682 | D23: 0.8320643066 | E23: 0.1118276445 | F23: 0.132938513 | G23: 0.8203560536 | H23: 0.09972996096 | I23: 0.9705053778 | J23: 0.3733196249 | K23: 0.4355595028 | L23: 0.9737955855
A24: R2 | B24: 0.2524715798 | C24: 0.8209276086 | D24: 0.3592618602 | E24: 0.5498968037 | F24: 0.4653215382 | G24: 0.09963435919 | H24: 0.9832010168 | I24: 0.5576775549 | J24: 0.7176763527 | K24: 0.02063408557 | L24: 0.01013124943
A25: R3 | B25: 0.7827543448 | C25: 0.2577949462 | D25: 0.4717753109 | E25: 0.2897541858 | F25: 0.866949604 | G25: 0.2948038298 | H25: 0.7642304401 | I25: 0.7048973983 | J25: 0.8392584487 | K25: 0.2767636512 | L25: 0.2261985095
A26: R4 | B26: 0.2278859445 | C26: 0.04153480899 | D26: 0.9764836522 | E26: 0.9545608502 | F26: 0.4941885469 | G26: 0.07213595343 | H26: 0.083960326 | I26: 0.121091543 | J26: 0.929400799 | K26: 0.1714048148 | L26: 0.3522761522
A27: R5 | B27: 0.1256205097 | C27: 0.1023748331 | D27: 0.8919613741 | E27: 0.5129219662 | F27: 0.7553210736 | G27: 0.6558854993 | H27: 0.2673709392 | I27: 0.803569722 | J27: 0.2574810809 | K27: 0.9945731653 | L27: 0.7685624097
A28: R1 | B28: =RANK(B23,$B23:$L23) -> 5 | C28: 8 | D28: 3 | E28: 10 | F28: 9 | G28: 4 | H28: 11 | I28: 2 | J28: 7 | K28: =RANK(K23,$B23:$L23) -> 6 | L28: 1
A29: R2 | B29: =RANK(B24,$B24:$L24) -> 8 | C29: 2 | D29: 7 | E29: 5 | F29: 6 | G29: 9 | H29: 1 | I29: 4 | J29: 3 | K29: =RANK(K24,$B24:$L24) -> 10 | L29: 11
A30: R3 | B30: =RANK(B25,$B25:$L25) -> 3 | C30: 10 | D30: 6 | E30: 8 | F30: 1 | G30: 7 | H30: 4 | I30: 5 | J30: 2 | K30: =RANK(K25,$B25:$L25) -> 9 | L30: 11
A31: R4 | B31: =RANK(B26,$B26:$L26) -> 6 | C31: 11 | D31: 1 | E31: 2 | F31: 4 | G31: 10 | H31: 9 | I31: 8 | J31: 3 | K31: =RANK(K26,$B26:$L26) -> 7 | L31: 5
A32: R5 | B32: =RANK(B27,$B27:$L27) -> 10 | C32: 11 | D32: 2 | E32: 7 | F32: 5 | G32: 6 | H32: 8 | I32: 3 | J32: 9 | K32: =RANK(K27,$B27:$L27) -> 1 | L32: 4
B33: =B2 -> DEANO | C33: =C2 -> TEZ | D33: BYRON | E33: STEVER | F33: JOHN C | G33: CRAIG T | H33: STUART D | I33: 0 | J33: 0 | K33: 0 | L33: 0 | M33: 0
A34: R1 | B34: 0.6215824521 | C34: 0.7228711071 | D34: 0.9442668108 | E34: 0.2392809694 | F34: 0.8102841741 | G34: 0.0334089019 | H34: 0.706096473 | I34: 0.8121714351 | J34: 0.2737631072 | K34: 0.6235479984 | L34: 0.975168874 | M34: 0.362626365
A35: R2 | B35: 0.2146064298 | C35: 0.5442398007 | D35: 0.5248741816 | E35: 0.4133026451 | F35: 0.1415806045 | G35: 0.5508023053 | H35: 0.06387724231 | I35: 0.5932930155 | J35: 0.9773111718 | K35: 0.7637886504 | L35: 0.58515794 | M35: 0.673999311
A36: R3 | B36: 0.3410432655 | C36: 0.8783216173 | D36: 0.1675661008 | E36: 0.09760208345 | F36: 0.2678729991 | G36: 0.8350884215 | H36: 0.02249164483 | I36: 0.2702085026 | J36: 0.0575430605 | K36: 0.3960753885 | L36: 0.07430010758 | M36: 0.8513799658
A37: R4 | B37: 0.3456918396 | C37: 0.7052230936 | D37: 0.5282434632 | E37: 0.7389709223 | F37: 0.3709656907 | G37: 0.7622494516 | H37: 0.7232129962 | I37: 0.222151506 | J37: 0.8943729532 | K37: 0.2475891136 | L37: 0.6086456725 | M37: 0.8718230462
A38: R5 | B38: 0.8957182788 | C38: 0.5854100033 | D38: 0.3888025073 | E38: 0.6772399291 | F38: 0.8971794784 | G38: 0.3896931476 | H38: 0.9846407934 | I38: 0.3182113765 | J38: 0.8750414595 | K38: 0.2961990113 | L38: 0.8489027275 | M38: 0.8394028071
A39: R1 | B39: =RANK(B34,$B34:$M34) -> 8 | C39: 5 | D39: 2 | E39: 11 | F39: 4 | G39: 12 | H39: 6 | I39: 3 | J39: 10 | K39: =RANK(K34,$B34:$M34) -> 7 | L39: 1 | M39: 9
A40: R2 | B40: =RANK(B35,$B35:$M35) -> 10 | C40: 7 | D40: 8 | E40: 9 | F40: 11 | G40: 6 | H40: 12 | I40: 4 | J40: 1 | K40: =RANK(K35,$B35:$M35) -> 2 | L40: 5 | M40: 3
A41: R3 | B41: =RANK(B36,$B36:$M36) -> 5 | C41: 1 | D41: 8 | E41: 9 | F41: 7 | G41: 3 | H41: 12 | I41: 6 | J41: 11 | K41: =RANK(K36,$B36:$M36) -> 4 | L41: 10 | M41: 2
A42: R4 | B42: =RANK(B37,$B37:$M37) -> 10 | C42: 6 | D42: 8 | E42: 4 | F42: 9 | G42: 3 | H42: 5 | I42: 12 | J42: 1 | K42: =RANK(K37,$B37:$M37) -> 11 | L42: 7 | M42: 2
A43: R5 | B43: =RANK(B38,$B38:$M38) -> 3 | C43: 8 | D43: 10 | E43: 7 | F43: 2 | G43: 9 | H43: 1 | I43: 11 | J43: 4 | K43: =RANK(K38,$B38:$M38) -> 12 | L43: 5 | M43: 6
B45: =B2 -> DEANO | C45: =C2 -> TEZ | D45: BYRON | E45: STEVER | F45: JOHN C | G45: CRAIG T | H45: STUART D | I45: 0 | J45: 0 | K45: 0 | L45: 0 | M45: 0 | N45: 0
A46: R1 | B46: =RAND() -> 0.884310656 | C46: 0.03698423161 | D46: 0.4211265461 | E46: 0.567263021 | F46: 0.0678541878 | G46: 0.6551870151 | H46: 0.1648485454 | I46: 0.6456489886 | J46: 0.4059324486 | K46: 0.345689541 | L46: 0.8929543123 | M46: 0.5856948484 | N46: 0.08017175143
A47: R2 | B47: 0.4529311571 | C47: 0.2250755376 | D47: 0.7679416473 | E47: 0.9936654974 | F47: 0.4271312276 | G47: 0.6561314592 | H47: 0.4501193325 | I47: 0.5264637112 | J47: 0.4541123315 | K47: 0.7067005911 | L47: 0.08005901689 | M47: 0.9347679881 | N47: 0.7232853283
A48: R3 | B48: 0.4778150027 | C48: 0.349071605 | D48: 0.8517333358 | E48: 0.7410556668 | F48: 0.6490045987 | G48: 0.486849434 | H48: 0.5788559957 | I48: 0.6276054883 | J48: 0.1248095186 | K48: 0.5187024383 | L48: 0.8237215688 | M48: 0.07152838634 | N48: 0.04948027549
A49: R4 | B49: 0.2609203689 | C49: 0.7769119785 | D49: 0.7140820052 | E49: 0.0004298923864 | F49: 0.2790425864 | G49: 0.4773778874 | H49: 0.8344982303 | I49: 0.7018411821 | J49: 0.3810403163 | K49: 0.143009321 | L49: 0.3682155302 | M49: 0.05574770043 | N49: 0.5484439845
A50: R5 | B50: 0.3916897676 | C50: 0.2689617272 | D50: 0.02971892425 | E50: 0.5567822585 | F50: 0.04806304408 | G50: 0.8974133888 | H50: 0.3231764699 | I50: 0.3331609772 | J50: 0.7490953322 | K50: 0.4591216025 | L50: 0.7438126427 | M50: 0.3796207648 | N50: 0.7454422885
A51: R1 | B51: =RANK(B46,$B46:$N46) -> 2 | C51: 13 | D51: 7 | E51: 6 | F51: 12 | G51: 3 | H51: 10 | I51: 4 | J51: 8 | K51: =RANK(K46,$B46:$N46) -> 9 | L51: 1 | M51: 5 | N51: 11
A52: R2 | B52: =RANK(B47,$B47:$N47) -> 9 | C52: 12 | D52: 3 | E52: 1 | F52: 11 | G52: 6 | H52: 10 | I52: 7 | J52: 8 | K52: =RANK(K47,$B47:$N47) -> 5 | L52: 13 | M52: 2 | N52: 4
A53: R3 | B53: =RANK(B48,$B48:$N48) -> 9 | C53: 10 | D53: 1 | E53: 3 | F53: 4 | G53: 8 | H53: 6 | I53: 5 | J53: 11 | K53: =RANK(K48,$B48:$N48) -> 7 | L53: 2 | M53: 12 | N53: 13
A54: R4 | B54: =RANK(B49,$B49:$N49) -> 10 | C54: 2 | D54: 3 | E54: 13 | F54: 9 | G54: 6 | H54: 1 | I54: 4 | J54: 7 | K54: =RANK(K49,$B49:$N49) -> 11 | L54: 8 | M54: 12 | N54: 5
A55: R5 | B55: =RANK(B50,$B50:$N50) -> 7 | C55: 11 | D55: 13 | E55: 5 | F55: 12 | G55: 1 | H55: 10 | I55: 9 | J55: 2 | K55: =RANK(K50,$B50:$N50) -> 6 | L55: 4 | M55: 8 | N55: 3
B56: =B2 -> DEANO | C56: =C2 -> TEZ | D56: BYRON | E56: STEVER | F56: JOHN C | G56: CRAIG T | H56: STUART D | I56: 0 | J56: 0 | K56: 0 | L56: 0 | M56: 0 | N56: 0 | O56: 0
A57: R1 | B57: 0.7167379251 | C57: 0.7089072993 | D57: 0.9374647403 | E57: 0.2064602844 | F57: 0.3107245711 | G57: 0.6820576228 | H57: 0.03777122053 | I57: 0.05654836484 | J57: 0.2858203429 | K57: 0.2334643745 | L57: 0.8580465059 | M57: 0.6388558601 | N57: 0.437799445 | O57: 0.5523915255
A58: R2 | B58: 0.03634649243 | C58: 0.8669756778 | D58: 0.1104516758 | E58: 0.758434634 | F58: 0.5756708338 | G58: 0.4510169893 | H58: 0.4680967562 | I58: 0.9148239868 | J58: 0.4764665479 | K58: 0.6067451667 | L58: 0.8455756778 | M58: 0.9402856657 | N58: 0.09281759587 | O58: 0.660633377
A59: R3 | B59: 0.8166951162 | C59: 0.9012460563 | D59: 0.5182881413 | E59: 0.7410582669 | F59: 0.5285403458 | G59: 0.7333771186 | H59: 0.3144033954 | I59: 0.2256483124 | J59: 0.04727481317 | K59: 0.1545345794 | L59: 0.9350113098 | M59: 0.8610884142 | N59: 0.6819787466 | O59: 0.8129315747
A60: R4 | B60: 0.8443300147 | C60: 0.7403506022 | D60: 0.9873298018 | E60: 0.9574675595 | F60: 0.1940899335 | G60: 0.9830141761 | H60: 0.485118051 | I60: 0.9471325499 | J60: 0.1120759497 | K60: 0.5012265764 | L60: 0.1039926242 | M60: 0.7759602826 | N60: 0.879353258 | O60: 0.1994994607
A61: R5 | B61: 0.74629175 | C61: 0.5877364647 | D61: 0.06274478093 | E61: 0.4807473157 | F61: 0.2936861306 | G61: 0.6596616721 | H61: 0.5873831784 | I61: 0.6278761534 | J61: 0.3099795232 | K61: 0.5288008662 | L61: 0.9355077317 | M61: 0.3497630754 | N61: 0.2377838424 | O61: 0.05117659328
A62: R1 | B62: =RANK(B57,$B57:$O57) -> 3 | C62: 4 | D62: 1 | E62: 12 | F62: 9 | G62: 5 | H62: 14 | I62: 13 | J62: 10 | K62: =RANK(K57,$B57:$O57) -> 11 | L62: 2 | M62: 6 | N62: 8 | O62: 7
A63: R2 | B63: =RANK(B58,$B58:$O58) -> 14 | C63: 3 | D63: 12 | E63: 5 | F63: 8 | G63: 11 | H63: 10 | I63: 2 | J63: 9 | K63: =RANK(K58,$B58:$O58) -> 7 | L63: 4 | M63: 1 | N63: 13 | O63: 6
A64: R3 | B64: =RANK(B59,$B59:$O59) -> 4 | C64: 2 | D64: 10 | E64: 6 | F64: 9 | G64: 7 | H64: 11 | I64: 12 | J64: 14 | K64: =RANK(K59,$B59:$O59) -> 13 | L64: 1 | M64: 3 | N64: 8 | O64: 5
A65: R4 | B65: =RANK(B60,$B60:$O60) -> 6 | C65: 8 | D65: 1 | E65: 3 | F65: 12 | G65: 2 | H65: 10 | I65: 4 | J65: 13 | K65: =RANK(K60,$B60:$O60) -> 9 | L65: 14 | M65: 7 | N65: 5 | O65: 11
A66: R5 | B66: =RANK(B61,$B61:$O61) -> 2 | C66: 5 | D66: 13 | E66: 8 | F66: 11 | G66: 3 | H66: 6 | I66: 4 | J66: 10 | K66: =RANK(K61,$B61:$O61) -> 7 | L66: 1 | M66: 9 | N66: 12 | O66: 14
B67: =B2 -> DEANO | C67: =C2 -> TEZ | D67: BYRON | E67: STEVER | F67: JOHN C | G67: CRAIG T | H67: STUART D | I67: 0 | J67: 0 | K67: 0 | L67: 0 | M67: 0 | N67: 0 | O67: 0 | P67: 0
A68: R1 | B68: =RAND() -> 0.8477192223 | C68: 0.8802378176 | D68: 0.7645003161 | E68: 0.8675242137 | F68: 0.7523240387 | G68: 0.7178212688 | H68: 0.6375570729 | I68: 0.5370325343 | J68: 0.3459665816 | K68: 0.2009125523 | L68: 0.02842492285 | M68: 0.5594791588 | N68: 0.001236445271 | O68: 0.7494304493 | P68: 0.7986784627
A69: R2 | B69: 0.4633121784 | C69: 0.8623103846 | D69: 0.04284079187 | E69: 0.1619444147 | F69: 0.08036930501 | G69: 0.1505968001 | H69: 0.498764727 | I69: 0.2294739511 | J69: 0.03685715077 | K69: 0.4026154267 | L69: 0.7260143963 | M69: 0.2794961955 | N69: 0.8678942302 | O69: 0.9183986578 | P69: 0.9942243045
A70: R3 | B70: 0.4248966662 | C70: 0.4649676929 | D70: 0.9905127792 | E70: 0.5592345917 | F70: 0.7744062341 | G70: 0.02977487954 | H70: 0.4766767013 | I70: 0.3693107009 | J70: 0.9808268135 | K70: 0.2339047719 | L70: 0.9683846004 | M70: 0.1919586616 | N70: 0.08579854176 | O70: 0.4153834972 | P70: 0.7127486427
A71: R4 | B71: 0.7299807721 | C71: 0.9603979387 | D71: 0.8995830594 | E71: 0.9231616985 | F71: 0.6838126012 | G71: 0.9927432441 | H71: 0.3157915327 | I71: 0.9392515478 | J71: 0.1430160391 | K71: 0.3552276593 | L71: 0.8473094965 | M71: 0.6908648523 | N71: 0.5099815963 | O71: 0.1577358447 | P71: 0.2669304477
A72: R5 | B72: 0.1274579869 | C72: 0.8190662613 | D72: 0.170747116 | E72: 0.7806283255 | F72: 0.02857990047 | G72: 0.4573498677 | H72: 0.6377500395 | I72: 0.1726753361 | J72: 0.6697772524 | K72: 0.4981193389 | L72: 0.2987947732 | M72: 0.1364448884 | N72: 0.1297108819 | O72: 0.848479748 | P72: 0.5941235773
A73: R1 | B73: =RANK(B68,$B68:$P68) -> 3 | C73: 1 | D73: 5 | E73: 2 | F73: 6 | G73: 8 | H73: 9 | I73: 11 | J73: 12 | K73: =RANK(K68,$B68:$P68) -> 13 | L73: 14 | M73: 10 | N73: 15 | O73: 7 | P73: 4
A74: R2 | B74: =RANK(B69,$B69:$P69) -> 7 | C74: 4 | D74: 14 | E74: 11 | F74: 13 | G74: 12 | H74: 6 | I74: 10 | J74: 15 | K74: =RANK(K69,$B69:$P69) -> 8 | L74: 5 | M74: 9 | N74: 3 | O74: 2 | P74: 1
A75: R3 | B75: =RANK(B70,$B70:$P70) -> 9 | C75: 8 | D75: 1 | E75: 6 | F75: 4 | G75: 15 | H75: 7 | I75: 11 | J75: 2 | K75: =RANK(K70,$B70:$P70) -> 12 | L75: 3 | M75: 13 | N75: 14 | O75: 10 | P75: 5
A76: R4 | B76: =RANK(B71,$B71:$P71) -> 7 | C76: 2 | D76: 5 | E76: 4 | F76: 9 | G76: 1 | H76: 12 | I76: 3 | J76: 15 | K76: =RANK(K71,$B71:$P71) -> 11 | L76: 6 | M76: 8 | N76: 10 | O76: 14 | P76: 13
A77: R5 | B77: =RANK(B72,$B72:$P72) -> 14 | C77: 2 | D77: 11 | E77: 3 | F77: 15 | G77: 8 | H77: 5 | I77: 10 | J77: 4 | K77: =RANK(K72,$B72:$P72) -> 7 | L77: 9 | M77: 12 | N77: 13 | O77: 1 | P77: 6
B78: =B2 -> DEANO | C78: =C2 -> TEZ | D78: BYRON | E78: STEVER | F78: JOHN C | G78: CRAIG T | H78: STUART D | I78: 0
A79: R1 | B79: =RAND() -> 0.01519248953 | C79: =RAND() -> 0.2769658763 | D79: 0.5062715147 | E79: 0.03114201438 | F79: 0.3262236548 | G79: 0.6263505323 | H79: 0.6120616397 | I79: 0.8425800603
A80: R2 | B80: 0.5667056869 | C80: 0.2554384666 | D80: 0.6670960153 | E80: 0.6450023967 | F80: 0.6950480951 | G80: 0.1820841177 | H80: 0.957706726 | I80: 0.05606699567
A81: R3 | B81: 0.3053626984 | C81: 0.4843105051 | D81: 0.5423127737 | E81: 0.4353970341 | F81: 0.671733512 | G81: 0.9496322083 | H81: 0.5649461726 | I81: 0.7043390162
A82: R4 | B82: 0.6388624138 | C82: 0.2567059436 | D82: 0.0595155415 | E82: 0.7557652074 | F82: 0.7150254889 | G82: 0.4375975572 | H82: 0.6310901834 | I82: 0.4178629271
A83: R5 | B83: 0.9310230801 | C83: 0.630735546 | D83: 0.8639600305 | E83: 0.5143905512 | F83: 0.6077852817 | G83: 0.985023497 | H83: 0.6143500978 | I83: 0.4240916969
A84: R1 | B84: =RANK(B79,$B79:$L79) -> 8 | C84: 6 | D84: 4 | E84: 7 | F84: 5 | G84: 2 | H84: 3 | I84: 1
A85: R2 | B85: 5 | C85: 6 | D85: 3 | E85: 4 | F85: 2 | G85: 7 | H85: 1 | I85: 8
A86: R3 | B86: 8 | C86: 6 | D86: 5 | E86: 7 | F86: 3 | G86: 1 | H86: 4 | I86: 2
A87: R4 | B87: 3 | C87: 7 | D87: 8 | E87: 1 | F87: 2 | G87: 5 | H87: 4 | I87: 6
A88: R5 | B88: 2 | C88: 4 | D88: 3 | E88: 7 | F88: 6 | G88: 1 | H88: 5 | I88: 8
A90: HERE-> | B90: 3 | C90: 4 | D90: 7 | E90: 1 | F90: 5 | G90: 6 | H90: 2
B91: 4 | C91: 1 | D91: 5 | E91: 2 | F91: 3 | G91: 7 | H91: 6
B92: 5 | C92: 4 | D92: 6 | E92: 7 | F92: 2 | G92: 1 | H92: 3
B93: 5 | C93: 7 | D93: 4 | E93: 6 | F93: 1 | G93: 2 | H93: 3
B94: 5 | C94: 1 | D94: 2 | E94: 7 | F94: 4 | G94: 3 | H94: 6
B96: CUT RANDOM NUMBERS & PASTE VALUES HERE TO BE PICKED UP BY OTHER SHEETS
C97: DESIGNED FOR EIGHT PLAYERS - CAN BE EXPANDED
B99: =B2 -> DEANO | C99: =C2 -> TEZ | D99: BYRON | E99: STEVER | F99: JOHN C | G99: CRAIG T | H99: STUART D
B100: =RAND() -> 0.9264101487 | C100: =RAND() -> 0.3708786797 | D100: 0.4711720613 | E100: 0.8310678179 | F100: 0.647900746 | G100: 0.660623975 | H100: 0.5069623206
B101: 0.8297034753 | C101: 0.7699489769 | D101: 0.2472226263 | E101: 0.4602208629 | F101: 0.1499511435 | G101: 0.2950879154 | H101: 0.2270136908
B102: 0.7586892599 | C102: 0.0536919452 | D102: 0.1327335148 | E102: 0.5641101151 | F102: 0.6695043165 | G102: 0.6696537424 | H102: 0.5927396694
B103: 0.188490884 | C103: 0.4521641873 | D103: 0.9710597935 | E103: 0.3554358537 | F103: 0.9068869931 | G103: 0.3684113763 | H103: 0.3640487752
B104: 0.6825391667 | C104: 0.9354556853 | D104: 0.5640498173 | E104: 0.455273974 | F104: 0.7652602959 | G104: 0.3574130666 | H104: 0.8280699318
B105: =RANK(B100,$B100:$L100) -> 1 | C105: 7 | D105: 6 | E105: 2 | F105: 4 | G105: 3 | H105: 5
B106: =RANK(B101,$B101:$L101) -> 1 | C106: 2 | D106: 5 | E106: 3 | F106: 7 | G106: 4 | H106: 6
B107: =RANK(B102,$B102:$L102) -> 1 | C107: 7 | D107: 6 | E107: 5 | F107: 3 | G107: 2 | H107: 4
B108: =RANK(B103,$B103:$L103) -> 7 | C108: 3 | D108: 1 | E108: 6 | F108: 2 | G108: 4 | H108: 5
B109: =RANK(B104,$B104:$L104) -> 4 | C109: 1 | D109: 5 | E109: 6 | F109: 3 | G109: 7 | H109: 2

Sheet Round order
B1: 1 | C1: 2 | D1: 3 | E1: 4 | F1: 5 | G1: 6 | H1: 7 | I1: 8
A2: R1 | B2: =IF('random picks'!$B90=1,'random picks'!$B$78,IF('random picks'!$C90=1,'random picks'!$C$78,IF('random picks'!$D90=1,'random picks'!$D$78,IF('random picks'!$E90=1,'random picks'!$E$78,IF('random picks'!$F90=1,'random picks'!$F$78,IF('random picks'!$G90=1,'random picks'!$G$78,IF('random picks'!$H90=1,'random picks'!$H$78,IF('random picks'!$I90=1,'random picks'!$I$78)))))))) -> STEVER | C2: =IF('random picks'!$B90=2,'random picks'!$B$78,IF('random picks'!$C90=2,'random picks'!$C$78,IF('random picks'!$D90=2,'random picks'!$D$78,IF('random picks'!$E90=2,'random picks'!$E$78,IF('random picks'!$F90=2,'random picks'!$F$78,IF('random picks'!$G90=2,'random picks'!$G$78,IF('random picks'!$H90=2,'random picks'!$H$78,IF('random picks'!$I90=2,'random picks'!$I$78)))))))) -> STUART D | D2: =IF('random picks'!$B90=3,'random picks'!$B$78,IF('random picks'!$C90=3,'random picks'!$C$78,IF('random picks'!$D90=3,'random picks'!$D$78,IF('random picks'!$E90=3,'random picks'!$E$78,IF('random picks'!$F90=3,'random picks'!$F$78,IF('random picks'!$G90=3,'random picks'!$G$78,IF('random picks'!$H90=3,'random picks'!$H$78,IF('random picks'!$I90=3,'random picks'!$I$78)))))))) -> DEANO | E2: =IF('random picks'!$B90=4,'random picks'!$B$78,IF('random picks'!$C90=4,'random picks'!$C$78,IF('random picks'!$D90=4,'random picks'!$D$78,IF('random picks'!$E90=4,'random picks'!$E$78,IF('random picks'!$F90=4,'random picks'!$F$78,IF('random picks'!$G90=4,'random picks'!$G$78,IF('random picks'!$H90=4,'random picks'!$H$78,IF('random picks'!$I90=4,'random picks'!$I$78)))))))) -> TEZ | F2: =IF('random picks'!$B90=5,'random picks'!$B$78,IF('random picks'!$C90=5,'random picks'!$C$78,IF('random picks'!$D90=5,'random picks'!$D$78,IF('random picks'!$E90=5,'random picks'!$E$78,IF('random picks'!$F90=5,'random picks'!$F$78,IF('random picks'!$G90=5,'random picks'!$G$78,IF('random picks'!$H90=5,'random picks'!$H$78,IF('random picks'!$I90=5,'random picks'!$I$78)))))))) -> JOHN C | G2: =IF('random picks'!$B90=6,'random picks'!$B$78,IF('random picks'!$C90=6,'random picks'!$C$78,IF('random picks'!$D90=6,'random picks'!$D$78,IF('random picks'!$E90=6,'random picks'!$E$78,IF('random picks'!$F90=6,'random picks'!$F$78,IF('random picks'!$G90=6,'random picks'!$G$78,IF('random picks'!$H90=6,'random picks'!$H$78,IF('random picks'!$I90=6,'random picks'!$I$78)))))))) -> CRAIG T | H2: =IF('random picks'!$B90=7,'random picks'!$B$78,IF('random picks'!$C90=7,'random picks'!$C$78,IF('random picks'!$D90=7,'random picks'!$D$78,IF('random picks'!$E90=7,'random picks'!$E$78,IF('random picks'!$F90=7,'random picks'!$F$78,IF('random picks'!$G90=7,'random picks'!$G$78,IF('random picks'!$H90=7,'random picks'!$H$78,IF('random picks'!$I90=7,'random picks'!$I$78)))))))) -> BYRON | I2: =IF('random picks'!$B90=8,'random picks'!$B$78,IF('random picks'!$C90=8,'random picks'!$C$78,IF('random picks'!$D90=8,'random picks'!$D$78,IF('random picks'!$E90=8,'random picks'!$E$78,IF('random picks'!$F90=8,'random picks'!$F$78,IF('random picks'!$G90=8,'random picks'!$G$78,IF('random picks'!$H90=8,'random picks'!$H$78,IF('random picks'!$I90=8,'random picks'!$I$78)))))))) -> FALSE
A3: R2 | B3: =IF('random picks'!$B91=1,'random picks'!$B$78,IF('random picks'!$C91=1,'random picks'!$C$78,IF('random picks'!$D91=1,'random picks'!$D$78,IF('random picks'!$E91=1,'random picks'!$E$78,IF('random picks'!$F91=1,'random picks'!$F$78,IF('random picks'!$G91=1,'random picks'!$G$78,IF('random picks'!$H91=1,'random picks'!$H$78,IF('random picks'!$I91=1,'random picks'!$I$78)))))))) -> TEZ | C3: =IF('random picks'!$B91=2,'random picks'!$B$78,IF('random picks'!$C91=2,'random picks'!$C$78,IF('random picks'!$D91=2,'random picks'!$D$78,IF('random picks'!$E91=2,'random picks'!$E$78,IF('random picks'!$F91=2,'random picks'!$F$78,IF('random picks'!$G91=2,'random picks'!$G$78,IF('random picks'!$H91=2,'random picks'!$H$78,IF('random picks'!$I91=2,'random picks'!$I$78)))))))) -> STEVER | D3: =IF('random picks'!$B91=3,'random picks'!$B$78,IF('random picks'!$C91=3,'random picks'!$C$78,IF('random picks'!$D91=3,'random picks'!$D$78,IF('random picks'!$E91=3,'random picks'!$E$78,IF('random picks'!$F91=3,'random picks'!$F$78,IF('random picks'!$G91=3,'random picks'!$G$78,IF('random picks'!$H91=3,'random picks'!$H$78,IF('random picks'!$I91=3,'random picks'!$I$78)))))))) -> JOHN C | E3: =IF('random picks'!$B91=4,'random picks'!$B$78,IF('random picks'!$C91=4,'random picks'!$C$78,IF('random picks'!$D91=4,'random picks'!$D$78,IF('random picks'!$E91=4,'random picks'!$E$78,IF('random picks'!$F91=4,'random picks'!$F$78,IF('random picks'!$G91=4,'random picks'!$G$78,IF('random picks'!$H91=4,'random picks'!$H$78,IF('random picks'!$I91=4,'random picks'!$I$78)))))))) -> DEANO | F3: =IF('random picks'!$B91=5,'random picks'!$B$78,IF('random picks'!$C91=5,'random picks'!$C$78,IF('random picks'!$D91=5,'random picks'!$D$78,IF('random picks'!$E91=5,'random picks'!$E$78,IF('random picks'!$F91=5,'random picks'!$F$78,IF('random picks'!$G91=5,'random picks'!$G$78,IF('random picks'!$H91=5,'random picks'!$H$78,IF('random picks'!$I91=5,'random picks'!$I$78)))))))) -> BYRON | G3: =IF('random picks'!$B91=6,'random picks'!$B$78,IF('random picks'!$C91=6,'random picks'!$C$78,IF('random picks'!$D91=6,'random picks'!$D$78,IF('random picks'!$E91=6,'random picks'!$E$78,IF('random picks'!$F91=6,'random picks'!$F$78,IF('random picks'!$G91=6,'random picks'!$G$78,IF('random picks'!$H91=6,'random picks'!$H$78,IF('random picks'!$I91=6,'random picks'!$I$78)))))))) -> STUART D | H3: =IF('random picks'!$B91=7,'random picks'!$B$78,IF('random picks'!$C91=7,'random picks'!$C$78,IF('random picks'!$D91=7,'random picks'!$D$78,IF('random picks'!$E91=7,'random picks'!$E$78,IF('random picks'!$F91=7,'random picks'!$F$78,IF('random picks'!$G91=7,'random picks'!$G$78,IF('random picks'!$H91=7,'random picks'!$H$78,IF('random picks'!$I91=7,'random picks'!$I$78)))))))) -> CRAIG T | I3: =IF('random picks'!$B91=8,'random picks'!$B$78,IF('random picks'!$C91=8,'random picks'!$C$78,IF('random picks'!$D91=8,'random picks'!$D$78,IF('random picks'!$E91=8,'random picks'!$E$78,IF('random picks'!$F91=8,'random picks'!$F$78,IF('random picks'!$G91=8,'random picks'!$G$78,IF('random picks'!$H91=8,'random picks'!$H$78,IF('random picks'!$I91=8,'random picks'!$I$78)))))))) -> FALSE
A4: R3 | B4: =IF('random picks'!$B92=1,'random picks'!$B$78,IF('random picks'!$C92=1,'random picks'!$C$78,IF('random picks'!$D92=1,'random picks'!$D$78,IF('random picks'!$E92=1,'random picks'!$E$78,IF('random picks'!$F92=1,'random picks'!$F$78,IF('random picks'!$G92=1,'random picks'!$G$78,IF('random picks'!$H92=1,'random picks'!$H$78,IF('random picks'!$I92=1,'random picks'!$I$78)))))))) -> CRAIG T | C4: =IF('random picks'!$B92=2,'random picks'!$B$78,IF('random picks'!$C92=2,'random picks'!$C$78,IF('random picks'!$D92=2,'random picks'!$D$78,IF('random picks'!$E92=2,'random picks'!$E$78,IF('random picks'!$F92=2,'random picks'!$F$78,IF('random picks'!$G92=2,'random picks'!$G$78,IF('random picks'!$H92=2,'random picks'!$H$78,IF('random picks'!$I92=2,'random picks'!$I$78)))))))) -> JOHN C | D4: =IF('random picks'!$B92=3,'random picks'!$B$78,IF('random picks'!$C92=3,'random picks'!$C$78,IF('random picks'!$D92=3,'random picks'!$D$78,IF('random picks'!$E92=3,'random picks'!$E$78,IF('random picks'!$F92=3,'random picks'!$F$78,IF('random picks'!$G92=3,'random picks'!$G$78,IF('random picks'!$H92=3,'random picks'!$H$78,IF('random picks'!$I92=3,'random picks'!$I$78)))))))) -> STUART D | E4: =IF('random picks'!$B92=4,'random picks'!$B$78,IF('random picks'!$C92=4,'random picks'!$C$78,IF('random picks'!$D92=4,'random picks'!$D$78,IF('random picks'!$E92=4,'random picks'!$E$78,IF('random picks'!$F92=4,'random picks'!$F$78,IF('random picks'!$G92=4,'random picks'!$G$78,IF('random picks'!$H92=4,'random picks'!$H$78,IF('random picks'!$I92=4,'random picks'!$I$78)))))))) -> TEZ | F4: =IF('random picks'!$B92=5,'random picks'!$B$78,IF('random picks'!$C92=5,'random picks'!$C$78,IF('random picks'!$D92=5,'random picks'!$D$78,IF('random picks'!$E92=5,'random picks'!$E$78,IF('random picks'!$F92=5,'random picks'!$F$78,IF('random picks'!$G92=5,'random picks'!$G$78,IF('random picks'!$H92=5,'random picks'!$H$78,IF('random picks'!$I92=5,'random picks'!$I$78)))))))) -> DEANO | G4: =IF('random picks'!$B92=6,'random picks'!$B$78,IF('random picks'!$C92=6,'random picks'!$C$78,IF('random picks'!$D92=6,'random picks'!$D$78,IF('random picks'!$E92=6,'random picks'!$E$78,IF('random picks'!$F92=6,'random picks'!$F$78,IF('random picks'!$G92=6,'random picks'!$G$78,IF('random picks'!$H92=6,'random picks'!$H$78,IF('random picks'!$I92=6,'random picks'!$I$78)))))))) -> BYRON | H4: =IF('random picks'!$B92=7,'random picks'!$B$78,IF('random picks'!$C92=7,'random picks'!$C$78,IF('random picks'!$D92=7,'random picks'!$D$78,IF('random picks'!$E92=7,'random picks'!$E$78,IF('random picks'!$F92=7,'random picks'!$F$78,IF('random picks'!$G92=7,'random picks'!$G$78,IF('random picks'!$H92=7,'random picks'!$H$78,IF('random picks'!$I92=7,'random picks'!$I$78)))))))) -> STEVER | I4: =IF('random picks'!$B92=8,'random picks'!$B$78,IF('random picks'!$C92=8,'random picks'!$C$78,IF('random picks'!$D92=8,'random picks'!$D$78,IF('random picks'!$E92=8,'random picks'!$E$78,IF('random picks'!$F92=8,'random picks'!$F$78,IF('random picks'!$G92=8,'random picks'!$G$78,IF('random picks'!$H92=8,'random picks'!$H$78,IF('random picks'!$I92=8,'random picks'!$I$78)))))))) -> FALSE
A5: R4 | B5: =IF('random picks'!$B93=1,'random picks'!$B$78,IF('random picks'!$C93=1,'random picks'!$C$78,IF('random picks'!$D93=1,'random picks'!$D$78,IF('random picks'!$E93=1,'random picks'!$E$78,IF('random picks'!$F93=1,'random picks'!$F$78,IF('random picks'!$G93=1,'random picks'!$G$78,IF('random picks'!$H93=1,'random picks'!$H$78,IF('random picks'!$I93=1,'random picks'!$I$78)))))))) -> JOHN C | C5: =IF('random picks'!$B93=2,'random picks'!$B$78,IF('random picks'!$C93=2,'random picks'!$C$78,IF('random picks'!$D93=2,'random picks'!$D$78,IF('random picks'!$E93=2,'random picks'!$E$78,IF('random picks'!$F93=2,'random picks'!$F$78,IF('random picks'!$G93=2,'random picks'!$G$78,IF('random picks'!$H93=2,'random picks'!$H$78,IF('random picks'!$I93=2,'random picks'!$I$78)))))))) -> CRAIG T | D5: =IF('random picks'!$B93=3,'random picks'!$B$78,IF('random picks'!$C93=3,'random picks'!$C$78,IF('random picks'!$D93=3,'random picks'!$D$78,IF('random picks'!$E93=3,'random picks'!$E$78,IF('random picks'!$F93=3,'random picks'!$F$78,IF('random picks'!$G93=3,'random picks'!$G$78,IF('random picks'!$H93=3,'random picks'!$H$78,IF('random picks'!$I93=3,'random picks'!$I$78)))))))) -> STUART D | E5: =IF('random picks'!$B93=4,'random picks'!$B$78,IF('random picks'!$C93=4,'random picks'!$C$78,IF('random picks'!$D93=4,'random picks'!$D$78,IF('random picks'!$E93=4,'random picks'!$E$78,IF('random picks'!$F93=4,'random picks'!$F$78,IF('random picks'!$G93=4,'random picks'!$G$78,IF('random picks'!$H93=4,'random picks'!$H$78,IF('random picks'!$I93=4,'random picks'!$I$78)))))))) -> BYRON | F5: =IF('random picks'!$B93=5,'random picks'!$B$78,IF('random picks'!$C93=5,'random picks'!$C$78,IF('random picks'!$D93=5,'random picks'!$D$78,IF('random picks'!$E93=5,'random picks'!$E$78,IF('random picks'!$F93=5,'random picks'!$F$78,IF('random picks'!$G93=5,'random picks'!$G$78,IF('random picks'!$H93=5,'random picks'!$H$78,IF('random picks'!$I93=5,'random picks'!$I$78)))))))) -> DEANO | G5: =IF('random picks'!$B93=6,'random picks'!$B$78,IF('random picks'!$C93=6,'random picks'!$C$78,IF('random picks'!$D93=6,'random picks'!$D$78,IF('random picks'!$E93=6,'random picks'!$E$78,IF('random picks'!$F93=6,'random picks'!$F$78,IF('random picks'!$G93=6,'random picks'!$G$78,IF('random picks'!$H93=6,'random picks'!$H$78,IF('random picks'!$I93=6,'random picks'!$I$78)))))))) -> STEVER | H5: =IF('random picks'!$B93=7,'random picks'!$B$78,IF('random picks'!$C93=7,'random picks'!$C$78,IF('random picks'!$D93=7,'random picks'!$D$78,IF('random picks'!$E93=7,'random picks'!$E$78,IF('random picks'!$F93=7,'random picks'!$F$78,IF('random picks'!$G93=7,'random picks'!$G$78,IF('random picks'!$H93=7,'random picks'!$H$78,IF('random picks'!$I93=7,'random picks'!$I$78)))))))) -> TEZ | I5: =IF('random picks'!$B93=8,'random picks'!$B$78,IF('random picks'!$C93=8,'random picks'!$C$78,IF('random picks'!$D93=8,'random picks'!$D$78,IF('random picks'!$E93=8,'random picks'!$E$78,IF('random picks'!$F93=8,'random picks'!$F$78,IF('random picks'!$G93=8,'random picks'!$G$78,IF('random picks'!$H93=8,'random picks'!$H$78,IF('random picks'!$I93=8,'random picks'!$I$78)))))))) -> FALSE
A6: R5 | B6: =IF('random picks'!$B94=1,'random picks'!$B$78,IF('random picks'!$C94=1,'random picks'!$C$78,IF('random picks'!$D94=1,'random picks'!$D$78,IF('random picks'!$E94=1,'random picks'!$E$78,IF('random picks'!$F94=1,'random picks'!$F$78,IF('random picks'!$G94=1,'random picks'!$G$78,IF('random picks'!$H94=1,'random picks'!$H$78,IF('random picks'!$I94=1,'random picks'!$I$78)))))))) -> TEZ | C6: =IF('random picks'!$B94=2,'random picks'!$B$78,IF('random picks'!$C94=2,'random picks'!$C$78,IF('random picks'!$D94=2,'random picks'!$D$78,IF('random picks'!$E94=2,'random picks'!$E$78,IF('random picks'!$F94=2,'random picks'!$F$78,IF('random picks'!$G94=2,'random picks'!$G$78,IF('random picks'!$H94=2,'random picks'!$H$78,IF('random picks'!$I94=2,'random picks'!$I$78)))))))) -> BYRON | D6: =IF('random picks'!$B94=3,'random picks'!$B$78,IF('random picks'!$C94=3,'random picks'!$C$78,IF('random picks'!$D94=3,'random picks'!$D$78,IF('random picks'!$E94=3,'random picks'!$E$78,IF('random picks'!$F94=3,'random picks'!$F$78,IF('random picks'!$G94=3,'random picks'!$G$78,IF('random picks'!$H94=3,'random picks'!$H$78,IF('random picks'!$I94=3,'random picks'!$I$78)))))))) -> CRAIG T | E6: =IF('random picks'!$B94=4,'random picks'!$B$78,IF('random picks'!$C94=4,'random picks'!$C$78,IF('random picks'!$D94=4,'random picks'!$D$78,IF('random picks'!$E94=4,'random picks'!$E$78,IF('random picks'!$F94=4,'random picks'!$F$78,IF('random picks'!$G94=4,'random picks'!$G$78,IF('random picks'!$H94=4,'random picks'!$H$78,IF('random picks'!$I94=4,'random picks'!$I$78)))))))) -> JOHN C | F6: =IF('random picks'!$B94=5,'random picks'!$B$78,IF('random picks'!$C94=5,'random picks'!$C$78,IF('random picks'!$D94=5,'random picks'!$D$78,IF('random picks'!$E94=5,'random picks'!$E$78,IF('random picks'!$F94=5,'random picks'!$F$78,IF('random picks'!$G94=5,'random picks'!$G$78,IF('random picks'!$H94=5,'random picks'!$H$78,IF('random picks'!$I94=5,'random picks'!$I$78)))))))) -> DEANO | G6: =IF('random picks'!$B94=6,'random picks'!$B$78,IF('random picks'!$C94=6,'random picks'!$C$78,IF('random picks'!$D94=6,'random picks'!$D$78,IF('random picks'!$E94=6,'random picks'!$E$78,IF('random picks'!$F94=6,'random picks'!$F$78,IF('random picks'!$G94=6,'random picks'!$G$78,IF('random picks'!$H94=6,'random picks'!$H$78,IF('random picks'!$I94=6,'random picks'!$I$78)))))))) -> STUART D | H6: =IF('random picks'!$B94=7,'random picks'!$B$78,IF('random picks'!$C94=7,'random picks'!$C$78,IF('random picks'!$D94=7,'random picks'!$D$78,IF('random picks'!$E94=7,'random picks'!$E$78,IF('random picks'!$F94=7,'random picks'!$F$78,IF('random picks'!$G94=7,'random picks'!$G$78,IF('random picks'!$H94=7,'random picks'!$H$78,IF('random picks'!$I94=7,'random picks'!$I$78)))))))) -> STEVER | I6: =IF('random picks'!$B94=8,'random picks'!$B$78,IF('random picks'!$C94=8,'random picks'!$C$78,IF('random picks'!$D94=8,'random picks'!$D$78,IF('random picks'!$E94=8,'random picks'!$E$78,IF('random picks'!$F94=8,'random picks'!$F$78,IF('random picks'!$G94=8,'random picks'!$G$78,IF('random picks'!$H94=8,'random picks'!$H$78,IF('random picks'!$I94=8,'random picks'!$I$78)))))))) -> FALSE
